{"text_format":"1","workbook":"xlsx","n_sheets":11,"sheets":["Vos 9 piliers de vie","Objectif SMARTER","Etapes vers objectif","Liste costumes actuels","Utile vs inutile","Costumes à jeter","Synthèse 1","Préciser et trier","A porter seul","A partager","A donner"],"not_rendered":{"charts":0,"images":0,"macros":1,"external_links":0,"defined_names":6,"comments":0,"pivot_tables":0},"unopened":[],"bounds":{"document_bytes":16777216,"sheet_cells":100000,"rows_first":2000,"rows_last":500,"rows_between":2000,"halvings":0,"cell_chars":16384,"cell_head_chars":4096},"cells_cut":0,"cells_raw":0,"read":"whole","date_system":"1900"}

{"sheet":"Vos 9 piliers de vie","index":0,"n_rows":14,"n_cols":4,"rows_kept":14,"cut":false,"hidden":false,"merged":[]}
["Etape 1 : Etat des lieux, bilan, prise de recul. Soyez vous-même."]
[]
["Inscrivez la date du jour (JJ/MM/AAAA) :"]
[]
["Vos 9 piliers de vie :","Questions à poser :","Note actuelle sur 10","Note souhaitée dans 6 mois sur 10"]
["Vie de famille : parents, frères, oncles, maris, épouse, enfants… ","Comment vous sentez-vous dans votre sphère familiale ?"]
["Vie amoureuse","Comment vous sentez-vous dans ce pilier ?"]
["Vie sociale (amis, copains, collègues…)","Comment décrivez-vous votre cadre social ?\nPlutôt un petit cercle d’amis, ou large… "]
["Vie professionnelle","Avez-vous choisi librement votre métier et\nvotre poste actuel ?"]
["Plaisirs personnels = petites actions du quotidien qui vous font\ndu bien (lire, marcher, profiter du soleil…), et qui ne dépendent\nQUE de VOUS.","Quelle est la dernière action que vous avez réalisée\nqui vous a procuré de la détente, de la joie ?"]
["Hygiène de vie = votre corps, sous un aspect fonctionnel\n(sport, sommeil, alimentation, prise de médicaments). ","Dormez-vous bien ?\nPrenez vous soin de votre alimentation ?\nPratiquez vous une activité physique régulière ?"]
["Gestion du quotidien = administratif, ménage, courses, argent.","Gérez-vous facilement votre quotidien ?"]
["Actions pour le monde = temps, argent, actions concrètes\n(tri déchets, don, vêtements…).","Quelles actions pour le monde faites-vous ?"]
["Epanouissement personnel = réflexion sur soi, confiance en soi,\ndéveloppement personnel.","Comment vous aimeriez vous épanouir davantage ?"]

{"sheet":"Objectif SMARTER","index":1,"n_rows":19,"n_cols":8,"rows_kept":19,"cut":false,"hidden":false,"merged":[]}
["Etape 2 : Un 1er jet de votre objectif SMARTER"]
[]
["Définissez votre objectif SMARTER :"]
["Important : votre objectif doit inclure les 2 dimensions suivantes de votre vie : vos relations et votre santé."]
["Objectif écrit :","S = Spécifique : précis, concret","M = Mesurable : définir un\nindicateur mesurable","A = Atteignable, Accessible","Rc = Réalisable dans le contexte actuel","T = Temporairement défini Þ objectif\ndoit être atteint à telle date","E = Enthousiasmant\net inspirant !","Rv = Réévaluable"]
["Je veux…","Atteindre X fois le résultat R,\n+ me sentir à 8/10 minimum\ndans ma santé et \n+ évaluer l'état de mes relations\nprofessionnelles et privées\nà 8/10 minimum.","Multiplier par x mon résultat actuel\n+ passer de 5/10 à 8/10 minimum\ndans ma santé\n+ passer de 5/10 à 8/10 minimum\nl'état de mes relations\nprofessionnelles et privées.","Les conditions C1, C2 et C4\nsont réunies pour rendre\ncet objectif atteignable.","Le contexte actuel : C1, C2, C3\nmontrent que cet objectif est\nréalisable maintenant.","Je devrai atteindre mon objectif\npour le JJ/MM/AAAA.","Cet objectif me motive car :\nraison 1, raison 2, raison 3","Je peux réévaluer cet objectif\nselon les critères : critère 1,\ncritère 2, critère 3."]
[]
[]
["Définissez la note que vous devez obtenir dans vos 9 piliers de vie pour atteindre votre objectif :"]
["Pilier de vie :","Note à obtenir sur 10 pour\natteindre votre objectif","Rappel note actuelle","Rappel note souhaitée\n(indépendamment\nde l'objectif)"]
["Vie de famille : parents, frères,\noncles, mari, épouse, enfants… ",null,{"$f":"'Vos 9 piliers de vie'!C6","v":0},{"$f":"'Vos 9 piliers de vie'!D6","v":0}]
["Vie amoureuse",null,{"$f":"'Vos 9 piliers de vie'!C7","v":0},{"$f":"'Vos 9 piliers de vie'!D7","v":0}]
["Vie sociale",null,{"$f":"'Vos 9 piliers de vie'!C8","v":0},{"$f":"'Vos 9 piliers de vie'!D8","v":0}]
["Vie professionnelle",null,{"$f":"'Vos 9 piliers de vie'!C9","v":0},{"$f":"'Vos 9 piliers de vie'!D9","v":0}]
["Plaisirs personnels",null,{"$f":"'Vos 9 piliers de vie'!C10","v":0},{"$f":"'Vos 9 piliers de vie'!D10","v":0}]
["Hygiène de vie",null,{"$f":"'Vos 9 piliers de vie'!C11","v":0},{"$f":"'Vos 9 piliers de vie'!D11","v":0}]
["Gestion du quotidien",null,{"$f":"'Vos 9 piliers de vie'!C12","v":0},{"$f":"'Vos 9 piliers de vie'!D12","v":0}]
["Actions pour le monde",null,{"$f":"'Vos 9 piliers de vie'!C13","v":0},{"$f":"'Vos 9 piliers de vie'!D13","v":0}]
["Epanouissement personnel",null,{"$f":"'Vos 9 piliers de vie'!C14","v":0},{"$f":"'Vos 9 piliers de vie'!D14","v":0}]

{"sheet":"Etapes vers objectif","index":2,"n_rows":20,"n_cols":7,"rows_kept":20,"cut":false,"hidden":false,"merged":[[2,2,2,5],[2,0,2,1]]}
["Etape 2 : Définition de l'objectif"]
[]
["Rappel de votre objectif :",null,{"$f":"OB","v":"Je veux…"}]
[]
[]
["Listez les grandes étapes à passer pour atteindre votre objectif (5 étapes maximum) :"]
["Etape","Par ordre de réalisation : nom de l'étape","Pourquoi cette étape est utile ?\n(Lier cette étape à l’objectif)","Durée de réalisation réaliste\nET pour quand doit-elle être\nréalisée ? (Date limite, …)","De qui avez-vous besoin pour réaliser\ncette étape ?\n(Services, collègues, supérieurs, membres\nde votre famille, amis, institutions,\nclients, fournisseurs, etc.)","Quelles tâches/ actions précises et\nconcrètes doivent être faites pour\nréussir cette étape ?\n(= qui donnent des résultats/objectif)","Critère(s) mesurable(s) de\nréalisation de l'étape ?"]
[1,"Réaliser…","Parce que…","1 mois. Pour le JJ/MM/AAAA.","Les équipes A, D et E.","Il faudra réussir à…","Quand le résultat D sera atteint."]
[2,"Terminer…","Car…","3 mois. Elle doit être réalisée pour\nle JJ/MM/AAAA.","L'ensemble des collaborateurs de l'entreprise.","Réaliser…","Quand l'action F sera réussie."]
[3,"Obtenir…","Parce que c'est ainsi que…","1 mois. Cette étape devra être passée\npour le JJ/MM/AAAA.","Les équipes B, E, et F.","Créer…","Les actions O et P donnent des résultats > 10."]
[4,"Parvenir à…","Car c'est la meilleure stratégie pour…","2 mois. Cette étape sera terminée\nle JJ/MM/AAAA.","Les équipes du service J.","Faire...","Les actions K et R sont réussies = résultats\n= X."]
[5,"Créer…","Parce qu'elle permettra de…","4 mois maximum. Elle sera atteinte\nle JJ/MM/AAAA.","L'ensemble des collaborateurs de l'entreprise.","Réaliser les actions 1, 2 et 4.","Les ventes sont > D et les stocks sont < à P."]
[]
["Exemple :"]
["Etape","Par ordre de réalisation : nom de l'étape","Pourquoi cette étape est utile ?\n(Lier cette étape à l’objectif)","Durée de réalisation réaliste\nET pour quand doit-elle être\nréalisée ? (Date limite, …)","De qui avez-vous besoin pour réaliser cette étape ?\n(Services, collègues, supérieurs, membres de votre\nfamille, amis, institutions, clients, fournisseurs, etc.)","Quelles tâches/ actions précises et concrètes\ndoivent être faites pour réussir cette étape ?\n(= qui donnent des résultats/objectif)","Critère(s) mesurable(s) de\nréalisation de l'étape ?"]
[1,"Réaliser…","Parce que…","1 mois. Pour le JJ/MM/AAAA.","Les équipes A, D et E.","Il faudra réussir à…","Quand le résultat D sera atteint."]
[2,"Terminer…","Car…","3 mois. Elle doit être réalisée pour le JJ/MM/AAAA.","L'ensemble des collaborateurs de l'entreprise.","Réaliser…","Quand l'action F sera réussie."]
[3,"Obtenir…","Parce que c'est ainsi que…","1 mois. Cette étape devra être passée pour\nle JJ/MM/AAAA.","Les équipes B, E, et F.","Créer…","Les actions O et P donnent des résultats > 10."]
[4,"Parvenir à…","Car c'est la meilleure stratégie pour…","2 mois. Cette étape sera terminée le JJ/MM/AAAA.","Les équipes du service J.","Faire...","Les actions K et R sont réussies = résultats = X."]
[5,"Créer…","Parce qu'elle permettra de…","4 mois maximum. Elle sera atteinte le JJ/MM/AAAA.","L'ensemble des collaborateurs de l'entreprise.","Réaliser les actions 1, 2 et 4.","Les ventes sont > D et les stocks sont < à P."]

{"sheet":"Liste costumes actuels","index":3,"n_rows":45,"n_cols":11,"rows_kept":45,"cut":false,"hidden":false,"merged":[]}
["Etape 3 : Je sais quels rôles actuels je dois conserver ou jeter, pour réussir sans tout perdre"]
[]
["Listez vos costumes/ rôles portés actuellement (10 max.) :"]
["Costume n°",1,2,3,4,5,6,7,8,9,10]
["Nom du rôle-costume endossé","Leader","Manager (en interne)","Partenaire commercial (à l'externe)","Mari / Amant","Père","Oncle, fils, etc. (vie familiale)","Ami / copain (vie sociale)","Loisirs (activités, clubs, etc.)","Dormeur","Sportif"]
["Symbole qui représente ce rôle-costume (figurine, vêtements, objet distinctif)","Cravate","Casquette spécifique","Bracelet, amulette","Anneau, bracelet, amulette, paire de lunettes, style de vêtement","Casquette spécifique, tee shirt spécifique","Type de chaussures","Type de pull","Porte clé qui représente votre activité","Pyjama","Statut, effigie, photo, portrait d'un sportif inspirant"]
["Quand le portez-vous ? (Situations, contextes, horaires précis…)","- Lors de séances avec M. G.\n- En rdv avec le client H","Quand je suis dans les lieux 1, 2 et 4.\nQuand…","Lors des salons, dans l'entreprise de M. W, …","Quand c'est le samedi, le dimanche, et le soir entre HH et HH, durant mes vacances 1, et 3. Dans les lieux suivants : lieu 1, lieu 2, lieu 3.","Quand c'est le samedi, le dimanche, et le soir entre HH et HH, durant mes vacances 1, et 3. Dans les lieux suivants : lieu 4, lieu 2, lieu 5.","Lors des anniversaires, des fêtes de Noël, des moments A, B et C.","Quand je vais chez personne 1, personne 2, personne 3. Quand je suis dans les lieux 1, 2, 3, 4, 5, 6, et 7.","Quand je pratique les activités : activité A, activité B, activité C.","Chaque nuit entre HH et HH minimum.","Chaque mercredi entre HH et HH, chaque samedi entre HH et HH."]
["Poids ressenti sur 10\n(0 = très léger, 10 = trop lourd)",10,9,8,8,7,6,5,4,9,7]
["Porté avec qui ?\n(membres de votre famille, amis, collègues, supérieurs, etc.)","Avec les membres du CA, personne 1, 2, 3, et 4.","Avec les équipes A, B et D.","Avec personne 1, 2, 3, 4, 5, 6, 7, 8, 9, et 10.","Avec ma femme/mon mari/etc.","Avec Prénom 1 et Prénom 2.","Avec : personne 1, personne 2, personne 3, personne 4, personne 5, personne 6, personne 7, personne 8, personne 9, personne 10, personne 11, personne 12, personne 13, personne 14, personne 15, personne 16, personne 17, personne 18, personne 19, personne 20, personne 21, personne 22, personne 23","Avec les personnes 1, 2 et 3.","L'activité A = avec les personnes 1, 2, 3, 4, et 5.\nL'activité B = avec les personnes 6, 7, 8\nL'activité C = avec la personne 9","Avec Mme/M. O.","Le mercredi avec le groupe A, et le samedi avec M. O."]
["Combien d’heures le portez-vous /jour, /semaine, /mois, /année ? (en moyenne)","5h/jour","7h/jour","4h/semaine","5h/jour","5h/jour","2h/semaine","3h/semaine","3h/semaine","8h/jour.","2h/semaine."]
["Action 1","Répondre aux mails & aux appels importants","Communiquer les actions prioritaires à mes équipes directes.","Répondre aux principaux partenaires externes de l'entreprise","Communiquer régulièrement avec elle/lui","Apporter de l'amour à mon enfant selon son langage de l'amour (= cadeaux, moments de qualité, services rendus, toucher physique, paroles valorisantes)","Appeler les membres X, Y, et R de ma famille 1 fois/mois.","Passer du temps avec mes ami(e)s","Lire 30 minutes/semaine un livre \"plaisir\".","Suivre un rituel du coucher identique tous les soirs.","Acheter mes tenues et mon matériel de sport."]
["Action 2","Présenter les résultats de l'entreprise","Encourager et motiver toutes les personnes que je manage.","Gérer la relation avec les fournisseurs","Accorder x heures par jour/semaine à elle/lui","M'assurer que mon/mes enfant(s) à des vêtements propres à mettre chaque jour.","Répondre aux appels de mon père.","Rencontrer de nouvelles personnes","Participer au carnaval de ma ville avec mon enfant.","Ne pas regarder d'écrans au moins 1h avant de me coucher.","Courir 2 fois / semaine pendant 30 minutes minimum."]
["Action 3","Définir et valider la vision/stratégie à moyen et à long terme pour l'entreprise. Réflexions et discusssions stratégiques","Informer Mme J, M. O, et l'équipe X, des actions à entreprendre cette semaine","Gérer la relation avec les clients","Répondre à ses demandes/messages/sollicitations","Accompagner mon/mes enfant(s) à ses activités extra-scolaires. Assurer les déplacements de mon/mes enfant(s)","Soutenir Mme X dans les x prochains mois.","Appeler/écrire à mes ami(e)s X, Z, et A au moins 1 fois/mois.","Prendre 7 jours de vacances tous les 3 mois.","Me lever chaque matin à une heure fixe.","M'étirer 10 minutes tous les soirs à 21h00."]
["Action 4","Gérer des rdv et appeler les clients/partenaires/fournisseurs/ etc.","Communiquer les objectifs à atteindre aux directeurs des différents services/ unités/ départements.","Gérer la relation avec la presse","Emmener ma femme/mon mari au restaurant en tête à tête au moins 1 fois/semaine.","Assurer l'éducation de mon enfant et aider mon/mes enfant(s) dans ses apprentissages.","Organiser un weekend avec X et Y au moins 2 fois/an.","Répondre à mes ami(e)s dans les 3 jours.","Pratiquer une activité qui me plaît chaque semaine, pendant x heures minimum.","Méditer, visualiser, ou prendre un temps calme chaque jour de 10 minutes au réveil / à 13h00 / au coucher.","Boire au moins 1,5 litres d'eau par jour."]
["Action 5","M'informer des tendances actuelles et futures qui pourraient impacter l'entreprise + Me former : min. 1 formation /an","Déléguer le travail 1 et 2 à Mme O.","Gérer la relation avec les partenaires financiers","Programmer au moins 1 we entre amoureux/mois.","Assurer un environnement sain, propre et sécurisé pour mon/mes enfant(s)","Me rendre disponible pour les anniversaires de P, S, et J chaque année.","Programmer au moins 1 sortie avec mes amis W, R, et U /mois.","Visiter des expositions/lieux/musées","Manger léger tous les soirs du lundi au vendredi, sans sucre ni café.","Manger des légumes midi et soir, et des protéines matin et midi."]
[]
["Notes : préciser le plus possibles les actions que vous faites déjà."]
[]
[]
["Exemple :"]
[{"$f":"+A4","v":"Costume n°"},1,2,3,4,5,6,7,8,9,10]
[{"$f":"+A5","v":"Nom du rôle-costume endossé"},"Leader","Manager (en interne)","Partenaire commercial (à l'externe)","Mari / Amant","Père","Oncle, fils, etc. (vie familiale)","Ami / copain (vie sociale)","Loisirs (activités, clubs, etc.)","Dormeur","Sportif"]
[{"$f":"+A6","v":"Symbole qui représente ce rôle-costume (figurine, vêtements, objet distinctif)"},"Cravate","Casquette spécifique","Bracelet, amulette","Anneau, bracelet, amulette, paire de lunettes, style de vêtement","Casquette spécifique, tee shirt spécifique","Type de chaussures","Type de pull","Porte clé qui représente votre activité","Pyjama","Statut, effigie, photo, portrait d'un sportif inspirant"]
[{"$f":"+A7","v":"Quand le portez-vous ? (Situations, contextes, horaires précis…)"},"- Lors de séances avec M. G.\n- En rdv avec le client H","Quand je suis dans les lieux 1, 2 et 4.\nQuand…","Lors des salons, dans l'entreprise de M. W, …","Quand c'est le samedi, le dimanche, et le soir entre HH et HH, durant mes vacances 1, et 3. Dans les lieux suivants : lieu 1, lieu 2, lieu 3.","Quand c'est le samedi, le dimanche, et le soir entre HH et HH, durant mes vacances 1, et 3. Dans les lieux suivants : lieu 4, lieu 2, lieu 5.","Lors des anniversaires, des fêtes de Noël, des moments A, B et C.","Quand je vais chez personne 1, personne 2, personne 3. Quand je suis dans les lieux 1, 2, 3, 4, 5, 6, et 7.","Quand je pratique les activités : activité A, activité B, activité C.","Chaque nuit entre HH et HH minimum.","Chaque mercredi entre HH et HH, chaque samedi entre HH et HH."]
[{"$f":"+A8","v":"Poids ressenti sur 10\n(0 = très léger, 10 = trop lourd)"},10,9,8,8,7,6,5,4,9,7]
[{"$f":"+A9","v":"Porté avec qui ?\n(membres de votre famille, amis, collègues, supérieurs, etc.)"},"Avec les membres du CA, personne 1, 2, 3, et 4.","Avec les équipes A, B et D.","Avec personne 1, 2, 3, 4, 5, 6, 7, 8, 9, et 10.","Avec ma femme/mon mari/etc.","Avec Prénom 1 et Prénom 2.","Avec : personne 1, personne 2, personne 3, personne 4, personne 5, personne 6, personne 7, personne 8, personne 9, personne 10, personne 11, personne 12, personne 13, personne 14, personne 15, personne 16, personne 17, personne 18, personne 19, personne 20, personne 21, personne 22, personne 23","Avec les personnes 1, 2 et 3.","L'activité A = avec les personnes 1, 2, 3, 4, et 5.\nL'activité B = avec les personnes 6, 7, 8\nL'activité C = avec la personne 9","Avec Mme/M. O.","Le mercredi avec le groupe A, et le samedi avec M. O."]
[{"$f":"+A10","v":"Combien d’heures le portez-vous /jour, /semaine, /mois, /année ? (en moyenne)"},"5h/jour","7h/jour","4h/semaine","5h/jour","5h/jour","2h/semaine","3h/semaine","3h/semaine","8h/jour.","2h/semaine."]
[{"$f":"+A11","v":"Action 1"},"Répondre aux mails & aux appels importants","Communiquer les actions prioritaires à mes équipes directes.","Répondre aux principaux partenaires externes de l'entreprise","Communiquer régulièrement avec elle/lui","Apporter de l'amour à mon enfant selon son langage de l'amour (= cadeaux, moments de qualité, services rendus, toucher physique, paroles valorisantes)","Appeler les membres X, Y, et R de ma famille 1 fois/mois.","Passer du temps avec mes ami(e)s","Lire 30 minutes/semaine un livre \"plaisir\".","Suivre un rituel du coucher identique tous les soirs.","Acheter mes tenues et mon matériel de sport."]
[{"$f":"+A12","v":"Action 2"},"Présenter les résultats de l'entreprise","Encourager et motiver toutes les personnes que je manage.","Gérer la relation avec les fournisseurs","Accorder x heures par jour/semaine à elle/lui","M'assurer que mon/mes enfant(s) à des vêtements propres à mettre chaque jour.","Répondre aux appels de mon père.","Rencontrer de nouvelles personnes","Participer au carnaval de ma ville avec mon enfant.","Ne pas regarder d'écrans au moins 1h avant de me coucher.","Courir 2 fois / semaine pendant 30 minutes minimum."]
[{"$f":"+A13","v":"Action 3"},"Définir et valider la vision/stratégie à moyen et à long terme pour l'entreprise. Réflexions et discusssions stratégiques","Informer Mme J, M. O, et l'équipe X, des actions à entreprendre cette semaine","Gérer la relation avec les clients","Répondre à ses demandes/messages/sollicitations","Accompagner mon/mes enfant(s) à ses activités extra-scolaires. Assurer les déplacements de mon/mes enfant(s)","Soutenir Mme X dans les x prochains mois.","Appeler/écrire à mes ami(e)s X, Z, et A au moins 1 fois/mois.","Prendre 7 jours de vacances tous les 3 mois.","Me lever chaque matin à une heure fixe.","M'étirer 10 minutes tous les soirs à 21h00."]
[{"$f":"+A14","v":"Action 4"},"Gérer des rdv et appeler les clients/partenaires/fournisseurs/ etc.","Communiquer les objectifs à atteindre aux directeurs des différents services/ unités/ départements.","Gérer la relation avec la presse","Emmener ma femme/mon mari au restaurant en tête à tête au moins 1 fois/semaine.","Assurer l'éducation de mon enfant et aider mon/mes enfant(s) dans ses apprentissages.","Organiser un weekend avec X et Y au moins 2 fois/an.","Répondre à mes ami(e)s dans les 3 jours.","Pratiquer une activité qui me plaît chaque semaine, pendant x heures minimum.","Méditer, visualiser, ou prendre un temps calme chaque jour de 10 minutes au réveil / à 13h00 / au coucher.","Boire au moins 1,5 litres d'eau par jour."]
[{"$f":"+A15","v":"Action 5"},"M'informer des tendances actuelles et futures qui pourraient impacter l'entreprise + Me former : min. 1 formation /an","Déléguer le travail 1 et 2 à Mme O.","Gérer la relation avec les partenaires financiers","Programmer au moins 1 we entre amoureux/mois.","Assurer un environnement sain, propre et sécurisé pour mon/mes enfant(s)","Me rendre disponible pour les anniversaires de P, S, et J chaque année.","Programmer au moins 1 sortie avec mes amis W, R, et U /mois.","Visiter des expositions/lieux/musées","Manger léger tous les soirs du lundi au vendredi, sans sucre ni café.","Manger des légumes midi et soir, et des protéines matin et midi."]
[]
["Costume n°",1,2,3,4,5,6,7,8,9,10]
["Nom du rôle-costume endossé","Leader","Manager (en interne)","Partenaire commercial (à l'externe)","Mari / Amant","Père","Oncle, fils, etc. (vie familiale)","Ami / copain (vie sociale)","Loisirs (activités, clubs, etc.)","Dormeur","Sportif"]
["Symbole qui représente ce rôle-costume (figurine, vêtements, objet distinctif)","Cravate","Casquette spécifique","Bracelet, amulette","Anneau, bracelet, amulette, paire de lunettes, style de vêtement","Casquette spécifique, tee shirt spécifique","Type de chaussures","Type de pull","Porte clé qui représente votre activité","Pyjama","Statut, effigie, photo, portrait d'un sportif inspirant"]
["Quand le portez-vous ? (Situations, contextes, horaires précis…)","- Lors de séances avec M. G.\n- En rdv avec le client H","Quand je suis dans les lieux 1, 2 et 4.\nQuand…","Lors des salons, dans l'entreprise de M. W, …","Quand c'est le samedi, le dimanche, et le soir entre HH et HH, durant mes vacances 1, et 3. Dans les lieux suivants : lieu 1, lieu 2, lieu 3.","Quand c'est le samedi, le dimanche, et le soir entre HH et HH, durant mes vacances 1, et 3. Dans les lieux suivants : lieu 4, lieu 2, lieu 5.","Lors des anniversaires, des fêtes de Noël, des moments A, B et C.","Quand je vais chez personne 1, personne 2, personne 3. Quand je suis dans les lieux 1, 2, 3, 4, 5, 6, et 7.","Quand je pratique les activités : activité A, activité B, activité C.","Chaque nuit entre HH et HH minimum.","Chaque mercredi entre HH et HH, chaque samedi entre HH et HH."]
["Poids ressenti sur 10\n(0 = très léger, 10 = trop lourd)",10,9,8,8,7,6,5,4,9,7]
["Porté avec qui ?\n(membres de votre famille, amis, collègues, supérieurs, etc.)","Avec M. X, M. G, M. H, Mme. Z","Avec les équipes A, B et D.","Avec M. W, M. O, Mme R, M. U, Mme Z, M. S, M. J, et Mme K.","Avec ma femme/mon mari/etc.","Avec Prénom 1 et Prénom 2.","Avec : personne 1, personne 2, personne 3, personne 4, personne 5, personne 6, personne 7, personne 8, personne 9, personne 10, personne 11, personne 12, personne 13, personne 14, personne 15, personne 16, personne 17, personne 18, personne 19, personne 20, personne 21, personne 22, personne 23","Avec les personnes 1, 2 et 3.","L'activité A = avec les personnes 1, 2, 3, 4, et 5.\nL'activité B = avec les personnes 6, 7, 8\nL'activité C = avec la personne 9","Avec Mme/M. O.","Le mercredi avec le groupe A, et le samedi avec M. O."]
["Combien d’heures le portez-vous /jour, /semaine, /mois, /année ? (en moyenne)","5h/jour","7h/jour","4h/semaine","5h/jour","5h/jour","2h/semaine","3h/semaine","3h/semaine","8h/jour.","2h/semaine."]
["Action 1","Répondre aux mails & aux appels importants","Communiquer les actions prioritaires à mes équipes directes.","Répondre aux principaux partenaires externes de l'entreprise","Communiquer régulièrement avec elle/lui","Apporter de l'amour à mon enfant selon son langage de l'amour (= cadeaux, moments de qualité, services rendus, toucher physique, paroles valorisantes)","Appeler les membres X, Y, et R de ma famille 1 fois/mois.","Passer du temps avec mes ami(e)s","Lire 30 minutes/semaine un livre \"plaisir\".","Suivre un rituel du coucher identique tous les soirs.","Acheter mes tenues et mon matériel de sport."]
["Action 2","Présenter les résultats de l'entreprise","Encourager et motiver toutes les personnes que je manage.","Gérer la relation avec les fournisseurs","Accorder x heures par jour/semaine à elle/lui","M'assurer que mon/mes enfant(s) à des vêtements propres à mettre chaque jour.","Répondre aux appels de mon père.","Rencontrer de nouvelles personnes","Participer au carnaval de ma ville avec mon enfant.","Ne pas regarder d'écrans au moins 1h avant de me coucher.","Courir 2 fois / semaine pendant 30 minutes minimum."]
["Action 3","Définir et valider la vision/stratégie à moyen et à long terme pour l'entreprise. Réflexions et discusssions stratégiques","Informer Mme J, M. O, et l'équipe X, des actions à entreprendre cette semaine","Gérer la relation avec les clients","Répondre à ses demandes/messages/sollicitations","Accompagner mon/mes enfant(s) à ses activités extra-scolaires. Assurer les déplacements de mon/mes enfant(s)","Soutenir Mme X dans les x prochains mois.","Appeler/écrire à mes ami(e)s X, Z, et A au moins 1 fois/mois.","Prendre 7 jours de vacances tous les 3 mois.","Me lever chaque matin à une heure fixe.","M'étirer 10 minutes tous les soirs à 21h00."]
["Action 4","Gérer des rdv et appeler les clients/partenaires/fournisseurs/ etc.","Communiquer les objectifs à atteindre aux directeurs des différents services/ unités/ départements.","Gérer la relation avec la presse","Emmener ma femme/mon mari au restaurant en tête à tête au moins 1 fois/semaine.","Assurer l'éducation de mon enfant et aider mon/mes enfant(s) dans ses apprentissages.","Organiser un weekend avec X et Y au moins 2 fois/an.","Répondre à mes ami(e)s dans les 3 jours.","Pratiquer une activité qui me plaît chaque semaine, pendant x heures minimum.","Méditer, visualiser, ou prendre un temps calme chaque jour de 10 minutes au réveil / à 13h00 / au coucher.","Boire au moins 1,5 litres d'eau par jour."]
["Action 5","M'informer des tendances actuelles et futures qui pourraient impacter l'entreprise + Me former : min. 1 formation /an","Déléguer le travail 1 et 2 à Mme O.","Gérer la relation avec les partenaires financiers","Programmer au moins 1 we entre amoureux/mois.","Assurer un environnement sain, propre et sécurisé pour mon/mes enfant(s)","Me rendre disponible pour les anniversaires de P, S, et J chaque année.","Programmer au moins 1 sortie avec mes amis W, R, et U /mois.","Visiter des expositions/lieux/musées","Manger léger tous les soirs du lundi au vendredi, sans sucre ni café.","Manger des légumes midi et soir, et des protéines matin et midi."]

{"sheet":"Utile vs inutile","index":4,"n_rows":31,"n_cols":11,"rows_kept":31,"cut":false,"hidden":false,"merged":[[2,0,2,1],[2,2,2,6]]}
["Etape 3 : Je sais quels rôles actuels je dois conserver ou jeter, pour réussir sans tout perdre !"]
[]
["Rappel de votre objectif :",null,{"$f":"OB","v":"Je veux…"}]
[]
["Evaluez l'utilité de chaque costume/ rôle porté actuellement au regard de votre objectif :"]
[{"$f":"'Liste costumes actuels'!A4","v":"Costume n°"},{"$f":"'Liste costumes actuels'!B4","v":1},{"$f":"'Liste costumes actuels'!C4","v":2},{"$f":"'Liste costumes actuels'!D4","v":3},{"$f":"'Liste costumes actuels'!E4","v":4},{"$f":"'Liste costumes actuels'!F4","v":5},{"$f":"'Liste costumes actuels'!G4","v":6},{"$f":"'Liste costumes actuels'!H4","v":7},{"$f":"'Liste costumes actuels'!I4","v":8},{"$f":"'Liste costumes actuels'!J4","v":9},{"$f":"'Liste costumes actuels'!K4","v":10}]
[{"$f":"'Liste costumes actuels'!A5","v":"Nom du rôle-costume endossé"},{"$f":"'Liste costumes actuels'!B5","v":"Leader"},{"$f":"'Liste costumes actuels'!C5","v":"Manager (en interne)"},{"$f":"'Liste costumes actuels'!D5","v":"Partenaire commercial (à l'externe)"},{"$f":"'Liste costumes actuels'!E5","v":"Mari / Amant"},{"$f":"'Liste costumes actuels'!F5","v":"Père"},{"$f":"'Liste costumes actuels'!G5","v":"Oncle, fils, etc. (vie familiale)"},{"$f":"'Liste costumes actuels'!H5","v":"Ami / copain (vie sociale)"},{"$f":"'Liste costumes actuels'!I5","v":"Loisirs (activités, clubs, etc.)"},{"$f":"'Liste costumes actuels'!J5","v":"Dormeur"},{"$f":"'Liste costumes actuels'!K5","v":"Sportif"}]
["Utilité sur 10 / objectif visé\n(0 = inutile, 10 = indispensable)",10,9,10,8,8,5,6,6,10,7]
["A garder / A jeter ?","A GARDER","A GARDER","A GARDER","A GARDER","A GARDER","A GARDER","A GARDER","A GARDER","A GARDER","A GARDER"]
["Pourquoi ce costume est utile / objectif ?\n(lier ce costume à une valeur haute = qui augmente\nvotre énergie)","Car","Parce que…","Car il me permet de…","Parce qu'elle me rend heureux et…","Car je suis responsable de mon/mes enfant(s) et…","Parce que j'ai besoin de… pour…","Car j'aime… pour…","Parce que cela me fait du bien de… pour…","Car j'ai besoin de faire le plein d'énergie pour…","Parce que j'ai besoin d'entretenir mon corps pour…"]
["Quand doit-il être porté ? \n(Etape(s) vers objectif, situations, contextes, lieux,\nhoraires précis, niveau d'énergie requis, etc.)","- A l'étape 1 et 2 pour atteindre mon objectif, avec un niveau d'énergie de min. 7/10\n- En réunion\n- En rdv avec les clients X et F","Quand situation 1, situation 2, situation 3.\nAvec un niveau d'énergie min. de 6/10.\nAvec l'humeur min. à 8/10.\nDe HH à HH les jeudis.","Contexte 1, 2, 3 et 4.\nAvec niveau d'énergie min. de 8/10 et humeur min. à 8/10.","Quand c'est le samedi, le dimanche, et le soir entre HH et HH, durant mes vacances 1, et 3. Dans les lieux suivants : lieu 1, lieu 2, lieu 3.","Quand c'est le samedi, le dimanche, et le soir entre HH et HH, durant mes vacances 1, et 3. Dans les lieux suivants : lieu 4, lieu 2, lieu 5.","Lors des anniversaires, des fêtes de Noël, des moments A, B et C.","Quand je vais chez personne 1, personne 2, personne 3. Quand je suis dans les lieux 1, 2, 3, 4, 5, 6, et 7.","Quand je pratique les activités : activité A, activité B, activité C.","Chaque nuit entre HH et HH minimum.","Chaque mercredi entre HH et HH, chaque samedi entre HH et HH."]
["Avec qui doit-il être porté ?\n(membres de votre famille, amis,\ncollègues, supérieurs, etc.)","Avec les membres du CA, personne 1, 2, 3, et 4.","Avec les équipes A, B et D.","Avec personne 1, 2, 3, 4, 5, 6, 7, 8, 9, et 10.","Avec ma femme/mon mari/etc.","Avec Prénom 1 et Prénom 2.","Avec : personne 1, personne 2, personne 3, personne 4, personne 5, personne 6, personne 7, personne 8, personne 9, personne 10, personne 11, personne 12, personne 13, personne 14, personne 15, personne 16, personne 17, personne 18, personne 19, personne 20, personne 21, personne 22, personne 23","Avec les personnes 1, 2 et 3.","L'activité A = avec les personnes 1, 2, 3, 4, et 5.\nL'activité B = avec les personnes 6, 7, 8\nL'activité C = avec la personne 9","Avec Mme/M. O.","Le mercredi avec le groupe A, et le samedi avec M. O."]
["Combien d’heures doit-il être porté min. /\nmax. par jour/ semaine/ mois/ année ?\n(pour atteindre l'objectif)","4h max./jour","4h min./jour","2h min./semaine","5h minimum/jour, et 7h min./jour les jours de congés, les samedis et les dimanches.","5h minimum/jour, et 7h min./jour les jours de congés, les samedis et les dimanches.","4h min./mois","2h min./semaine","1h min./semaine","7h min./jour","2h min./semaine"]
[]
[]
["Exemple :"]
[{"$f":"A6","v":"Costume n°"},1,2,3,4,5,6,7,8,9,10]
[{"$f":"A7","v":"Nom du rôle-costume endossé"},"Leader","Manager (en interne)","Partenaire commercial (à l'externe)","Mari / Amant","Père","Oncle, fils, etc. (vie familiale)","Ami / copain (vie sociale)","Loisirs (activités, clubs, etc.)","Dormeur","Sportif"]
[{"$f":"A8","v":"Utilité sur 10 / objectif visé\n(0 = inutile, 10 = indispensable)"},{"$f":"+B8","v":10},9,10,8,8,5,6,6,10,7]
[{"$f":"A10","v":"Pourquoi ce costume est utile / objectif ?\n(lier ce costume à une valeur haute = qui augmente\nvotre énergie)"},{"$f":"+B10","v":"Car"},"Parce que…","Car il me permet de…","Parce qu'elle me rend heureux et…","Car je suis responsable de mon/mes enfant(s) et…","Parce que j'ai besoin de… pour…","Car j'aime… pour…","Parce que cela me fait du bien de… pour…","Car j'ai besoin de faire le plein d'énergie pour…","Parce que j'ai besoin d'entretenir mon corps pour…"]
[{"$f":"A11","v":"Quand doit-il être porté ? \n(Etape(s) vers objectif, situations, contextes, lieux,\nhoraires précis, niveau d'énergie requis, etc.)"},"- A l'étape 1 et 2 pour atteindre mon objectif, avec un niveau d'énergie de min. 7/10\n- En réunion\n- En rdv avec les clients X et F","Quand situation 1, situation 2, situation 3.\nAvec un niveau d'énergie min. de 6/10.\nAvec l'humeur min. à 8/10.\nDe HH à HH les jeudis.","Contexte 1, 2, 3 et 4.\nAvec niveau d'énergie min. de 8/10 et humeur min. à 8/10.","Quand c'est le samedi, le dimanche, et le soir entre HH et HH, durant mes vacances 1, et 3. Dans les lieux suivants : lieu 1, lieu 2, lieu 3.","Quand c'est le samedi, le dimanche, et le soir entre HH et HH, durant mes vacances 1, et 3. Dans les lieux suivants : lieu 4, lieu 2, lieu 5.","Lors des anniversaires, des fêtes de Noël, des moments A, B et C.","Quand je vais chez personne 1, personne 2, personne 3. Quand je suis dans les lieux 1, 2, 3, 4, 5, 6, et 7.","Quand je pratique les activités : activité A, activité B, activité C.","Chaque nuit entre HH et HH minimum.","Chaque mercredi entre HH et HH, chaque samedi entre HH et HH."]
[{"$f":"A12","v":"Avec qui doit-il être porté ?\n(membres de votre famille, amis,\ncollègues, supérieurs, etc.)"},"Avec les membres du CA, personne 1, 2, 3, et 4.","Avec les équipes A, B et D.","Avec personne 1, 2, 3, 4, 5, 6, 7, 8, 9, et 10.","Avec ma femme/mon mari/etc.","Avec Prénom 1 et Prénom 2.","Avec : personne 1, personne 2, personne 3, personne 4, personne 5, personne 6, personne 7, personne 8, personne 9, personne 10, personne 11, personne 12, personne 13, personne 14, personne 15, personne 16, personne 17, personne 18, personne 19, personne 20, personne 21, personne 22, personne 23","Avec les personnes 1, 2 et 3.","L'activité A = avec les personnes 1, 2, 3, 4, et 5.\nL'activité B = avec les personnes 6, 7, 8\nL'activité C = avec la personne 9","Avec Mme/M. O.","Le mercredi avec le groupe A, et le samedi avec M. O."]
[{"$f":"A13","v":"Combien d’heures doit-il être porté min. /\nmax. par jour/ semaine/ mois/ année ?\n(pour atteindre l'objectif)"},{"$f":"+B13","v":"4h max./jour"},"4h min./jour","2h min./semaine","5h minimum/jour, et 7h min./jour les jours de congés, les samedis et les dimanches.","5h minimum/jour, et 7h min./jour les jours de congés, les samedis et les dimanches.","4h min./mois","2h min./semaine","1h min./semaine","7h min./jour","2h min./semaine"]
[]
["Costume n°",1,2,3,4,5,6,7,8,9,10]
["Nom du rôle-costume endossé","Leader","Manager (en interne)","Partenaire commercial (à l'externe)","Mari / Amant","Père","Oncle, fils, etc. (vie familiale)","Ami / copain (vie sociale)","Loisirs (activités, clubs, etc.)","Dormeur","Sportif"]
["Utilité sur 10 / objectif visé\n(0 = inutile, 10 = indispensable)",10,9,10,8,8,5,6,6,10,7]
["Pourquoi ce costume est utile / objectif ?\n(lier ce costume à une valeur haute = qui augmente\nvotre énergie)","Car","Parce que…","Car il me permet de…","Parce qu'elle me rend heureux et…","Car je suis responsable de mon/mes enfant(s) et…","Parce que j'ai besoin de… pour…","Car j'aime… pour…","Parce que cela me fait du bien de… pour…","Car j'ai besoin de faire le plein d'énergie pour…","Parce que j'ai besoin d'entretenir mon corps pour…"]
["Quand doit-il être porté ? \n(Etape(s) vers objectif, situations, contextes, lieux,\nhoraires précis, niveau d'énergie requis, etc.)","- A l'étape 1 et 2 pour atteindre mon objectif, avec un niveau d'énergie de min. 7/10\n- En réunion\n- En rdv avec les clients X et F","Quand situation 1, situation 2, situation 3.\nAvec un niveau d'énergie min. de 6/10.\nAvec l'humeur min. à 8/10.\nDe HH à HH les jeudis.","Contexte 1, 2, 3 et 4.\nAvec niveau d'énergie min. de 8/10 et humeur min. à 8/10.","Quand c'est le samedi, le dimanche, et le soir entre HH et HH, durant mes vacances 1, et 3. Dans les lieux suivants : lieu 1, lieu 2, lieu 3.","Quand c'est le samedi, le dimanche, et le soir entre HH et HH, durant mes vacances 1, et 3. Dans les lieux suivants : lieu 4, lieu 2, lieu 5.","Lors des anniversaires, des fêtes de Noël, des moments A, B et C.","Quand je vais chez personne 1, personne 2, personne 3. Quand je suis dans les lieux 1, 2, 3, 4, 5, 6, et 7.","Quand je pratique les activités : activité A, activité B, activité C.","Chaque nuit entre HH et HH minimum.","Chaque mercredi entre HH et HH, chaque samedi entre HH et HH."]
["Avec qui doit-il être porté ?\n(membres de votre famille, amis,\ncollègues, supérieurs, etc.)","Avec les membres du CA, personne 1, 2, 3, et 4.","Avec les équipes A, B et D.","Avec personne 1, 2, 3, 4, 5, 6, 7, 8, 9, et 10.","Avec ma femme/mon mari/etc.","Avec Prénom 1 et Prénom 2.","Avec : personne 1, personne 2, personne 3, personne 4, personne 5, personne 6, personne 7, personne 8, personne 9, personne 10, personne 11, personne 12, personne 13, personne 14, personne 15, personne 16, personne 17, personne 18, personne 19, personne 20, personne 21, personne 22, personne 23","Avec les personnes 1, 2 et 3.","L'activité A = avec les personnes 1, 2, 3, 4, et 5.\nL'activité B = avec les personnes 6, 7, 8\nL'activité C = avec la personne 9","Avec Mme/M. O.","Le mercredi avec le groupe A, et le samedi avec M. O."]
["Combien d’heures doit-il être porté min. /\nmax. par jour/ semaine/ mois/ année ?\n(pour atteindre l'objectif)","4h max./jour","4h min./jour","2h min./semaine","5h minimum/jour, et 7h min./jour les jours de congés, les samedis et les dimanches.","5h minimum/jour, et 7h min./jour les jours de congés, les samedis et les dimanches.","4h min./mois","2h min./semaine","1h min./semaine","7h min./jour","2h min./semaine"]

{"sheet":"Costumes à jeter","index":5,"n_rows":13,"n_cols":3,"rows_kept":13,"cut":false,"hidden":false,"merged":[[2,0,2,1],[2,2,2,6]]}
["Etape 4 : Je modifie mes rôles actuels pour atteindre mon objectif sans devoir tout faire !"]
[]
["Rappel de votre objectif :",null,{"$f":"OB","v":"Je veux…"}]
[]
["Précisez comment vous allez jeter certains de vos rôles-costumes :"]
[{"$f":"'Liste costumes actuels'!A4","v":"Costume n°"}]
["Nom du costume"]
["Comment ?\n(Déléguer, arrêter cette production, arrêter ce service,\nembaucher, cesser ou modifier la relation, etc.)"]
["Quelles actions à faire pour le jeter ?\n(Annonces, réunions, etc.)"]
["Qui cela implique ?"]
["Quand allez-vous le jeter ?"]
["Combien cela va vous coûter ?\n(Prix financier, émotionnel, relationnel…)"]
["Quelles conséquences positives / votre objectif ?"]

{"sheet":"Synthèse 1","index":6,"n_rows":19,"n_cols":11,"rows_kept":19,"cut":false,"hidden":false,"merged":[[2,1,2,4]]}
["Synthèse 1 des rôles-costumes à endosser :"]
[]
["Objectif rappel :",{"$f":"OB","v":"Je veux…"}]
[]
["Synthèse des rôles-costumes à porter pour atteindre votre objectif :"]
[{"$f":"'Liste costumes actuels'!A4","v":"Costume n°"},1,2,3,4,5,6,7,8,9,10]
[{"$f":"'Liste costumes actuels'!A5","v":"Nom du rôle-costume endossé"},"Leader","Manager (en interne)","Partenaire commercial (à l'externe)","Mari / Amant","Père","Oncle, fils, etc. (vie familiale)","Ami / copain (vie sociale)","Loisirs (activités, clubs, etc.)","Dormeur","Sportif"]
[{"$f":"'Liste costumes actuels'!A6","v":"Symbole qui représente ce rôle-costume (figurine, vêtements, objet distinctif)"},"Cravate","Casquette spécifique","Bracelet, amulette","Anneau, bracelet, amulette, paire de lunettes, style de vêtement","Casquette spécifique, tee shirt spécifique","Type de chaussures","Type de pull","Porte clé qui représente votre activité","Pyjama","Statut, effigie, photo, portrait d'un sportif inspirant"]
[{"$f":"'Utile vs inutile'!A8","v":"Utilité sur 10 / objectif visé\n(0 = inutile, 10 = indispensable)"},10,9,10,8,8,5,6,6,10,7]
["Pourquoi ce costume est utile / objectif ?\n(lier ce costume à une valeur haute =\nqui augmente votre énergie)","Car","Parce que…","Car il me permet de…","Parce qu'elle me rend heureux et…","Car je suis responsable de mon/mes enfant(s) et…","Parce que j'ai besoin de… pour…","Car j'aime… pour…","Parce que cela me fait du bien de… pour…","Car j'ai besoin de faire le plein d'énergie pour…","Parce que j'ai besoin d'entretenir mon corps pour…"]
[{"$f":"'Liste costumes actuels'!A8","v":"Poids ressenti sur 10\n(0 = très léger, 10 = trop lourd)"},10,9,8,8,7,6,5,4,9,7]
["Quand doit-il être porté ? \n(Etape(s) vers objectif, situations, contextes,\nlieux, horaires précis, niveau d'énergie\nrequis, etc.)","- A l'étape 1 et 2 pour atteindre mon objectif, avec un niveau d'énergie de min. 7/10\n- En réunion\n- En rdv avec les clients X et F","Quand situation 1, situation 2, situation 3.\nAvec un niveau d'énergie min. de 6/10.\nAvec l'humeur min. à 8/10.\nDe HH à HH les jeudis.","Contexte 1, 2, 3 et 4.\nAvec niveau d'énergie min. de 8/10 et humeur min. à 8/10.","Quand c'est le samedi, le dimanche, et le soir entre HH et HH, durant mes vacances 1, et 3. Dans les lieux suivants : lieu 1, lieu 2, lieu 3.","Quand c'est le samedi, le dimanche, et le soir entre HH et HH, durant mes vacances 1, et 3. Dans les lieux suivants : lieu 4, lieu 2, lieu 5.","Lors des anniversaires, des fêtes de Noël, des moments A, B et C.","Quand je vais chez personne 1, personne 2, personne 3. Quand je suis dans les lieux 1, 2, 3, 4, 5, 6, et 7.","Quand je pratique les activités : activité A, activité B, activité C.","Chaque nuit entre HH et HH minimum.","Chaque mercredi entre HH et HH, chaque samedi entre HH et HH."]
[{"$f":"'Utile vs inutile'!A12","v":"Avec qui doit-il être porté ?\n(membres de votre famille, amis,\ncollègues, supérieurs, etc.)"},"Avec les membres du CA, personne 1, 2, 3, et 4.","Avec les équipes A, B et D.","Avec personne 1, 2, 3, 4, 5, 6, 7, 8, 9, et 10.","Avec ma femme/mon mari/etc.","Avec Prénom 1 et Prénom 2.","Avec : personne 1, personne 2, personne 3, personne 4, personne 5, personne 6, personne 7, personne 8, personne 9, personne 10, personne 11, personne 12, personne 13, personne 14, personne 15, personne 16, personne 17, personne 18, personne 19, personne 20, personne 21, personne 22, personne 23","Avec les personnes 1, 2 et 3.","L'activité A = avec les personnes 1, 2, 3, 4, et 5.\nL'activité B = avec les personnes 6, 7, 8\nL'activité C = avec la personne 9","Avec Mme/M. O.","Le mercredi avec le groupe A, et le samedi avec M. O."]
[{"$f":"'Utile vs inutile'!A13","v":"Combien d’heures doit-il être porté min. /\nmax. par jour/ semaine/ mois/ année ?\n(pour atteindre l'objectif)"},"4h max./jour","4h min./jour","2h min./semaine","5h minimum/jour, et 7h min./jour les jours de congés, les samedis et les dimanches.","5h minimum/jour, et 7h min./jour les jours de congés, les samedis et les dimanches.","4h min./mois","2h min./semaine","1h min./semaine","7h min./jour","2h min./semaine"]
[{"$f":"'Liste costumes actuels'!A11","v":"Action 1"},"Répondre aux mails & aux appels importants","Communiquer les actions prioritaires à mes équipes directes.","Répondre aux principaux partenaires externes de l'entreprise","Communiquer régulièrement avec elle/lui","Apporter de l'amour à mon enfant selon son langage de l'amour (= cadeaux, moments de qualité, services rendus, toucher physique, paroles valorisantes)","Appeler les membres X, Y, et R de ma famille 1 fois/mois.","Passer du temps avec mes ami(e)s","Lire 30 minutes/semaine un livre \"plaisir\".","Suivre un rituel du coucher identique tous les soirs.","Acheter mes tenues et mon matériel de sport."]
[{"$f":"'Liste costumes actuels'!A12","v":"Action 2"},"Présenter les résultats de l'entreprise","Encourager et motiver toutes les personnes que je manage.","Gérer la relation avec les fournisseurs","Accorder x heures par jour/semaine à elle/lui","M'assurer que mon/mes enfant(s) à des vêtements propres à mettre chaque jour.","Répondre aux appels de mon père.","Rencontrer de nouvelles personnes","Participer au carnaval de ma ville avec mon enfant.","Ne pas regarder d'écrans au moins 1h avant de me coucher.","Courir 2 fois / semaine pendant 30 minutes minimum."]
[{"$f":"'Liste costumes actuels'!A13","v":"Action 3"},"Définir et valider la vision/stratégie à moyen et à long terme pour l'entreprise. Réflexions et discusssions stratégiques","Informer Mme J, M. O, et l'équipe X, des actions à entreprendre cette semaine","Gérer la relation avec les clients","Répondre à ses demandes/messages/sollicitations","Accompagner mon/mes enfant(s) à ses activités extra-scolaires. Assurer les déplacements de mon/mes enfant(s)","Soutenir Mme X dans les x prochains mois.","Appeler/écrire à mes ami(e)s X, Z, et A au moins 1 fois/mois.","Prendre 7 jours de vacances tous les 3 mois.","Me lever chaque matin à une heure fixe.","M'étirer 10 minutes tous les soirs à 21h00."]
[{"$f":"'Liste costumes actuels'!A14","v":"Action 4"},"Gérer des rdv et appeler les clients/partenaires/fournisseurs/ etc.","Communiquer les objectifs à atteindre aux directeurs des différents services/ unités/ départements.","Gérer la relation avec la presse","Emmener ma femme/mon mari au restaurant en tête à tête au moins 1 fois/semaine.","Assurer l'éducation de mon enfant et aider mon/mes enfant(s) dans ses apprentissages.","Organiser un weekend avec X et Y au moins 2 fois/an.","Répondre à mes ami(e)s dans les 3 jours.","Pratiquer une activité qui me plaît chaque semaine, pendant x heures minimum.","Méditer, visualiser, ou prendre un temps calme chaque jour de 10 minutes au réveil / à 13h00 / au coucher.","Boire au moins 1,5 litres d'eau par jour."]
[{"$f":"'Liste costumes actuels'!A15","v":"Action 5"},"M'informer des tendances actuelles et futures qui pourraient impacter l'entreprise + Me former : min. 1 formation /an","Déléguer le travail 1 et 2 à Mme O.","Gérer la relation avec les partenaires financiers","Programmer au moins 1 we entre amoureux/mois.","Assurer un environnement sain, propre et sécurisé pour mon/mes enfant(s)","Me rendre disponible pour les anniversaires de P, S, et J chaque année.","Programmer au moins 1 sortie avec mes amis W, R, et U /mois.","Visiter des expositions/lieux/musées","Manger léger tous les soirs du lundi au vendredi, sans sucre ni café.","Manger des légumes midi et soir, et des protéines matin et midi."]

{"sheet":"Préciser et trier","index":7,"n_rows":159,"n_cols":15,"rows_kept":159,"cut":false,"hidden":false,"merged":[[2,1,2,2],[2,3,2,7]]}
[null,"Etape 4 : Je modifie mes rôles actuels pour atteindre mon objectif sans devoir tout faire !"]
[]
[null,"Rappel de votre objectif :",null,{"$f":"OB","v":"Je veux…"}]
[]
[null,"Tableau automatique : Transpose = CTRL+MAJ+ENTER"]
[null,{"$f":"TRANSPOSE('Synthèse 1'!$A$6:$K$19)","v":"Costume n°"},"Nom du rôle-costume endossé","Symbole qui représente ce rôle-costume (figurine, vêtements, objet distinctif)","Utilité sur 10 / objectif visé\n(0 = inutile, 10 = indispensable)","Pourquoi ce costume est utile / objectif ?\n(lier ce costume à une valeur haute =\nqui augmente votre énergie)","Poids ressenti sur 10\n(0 = très léger, 10 = trop lourd)","Quand doit-il être porté ? \n(Etape(s) vers objectif, situations, contextes,\nlieux, horaires précis, niveau d'énergie\nrequis, etc.)","Avec qui doit-il être porté ?\n(membres de votre famille, amis,\ncollègues, supérieurs, etc.)","Combien d’heures doit-il être porté min. /\nmax. par jour/ semaine/ mois/ année ?\n(pour atteindre l'objectif)","Action 1","Action 2","Action 3","Action 4","Action 5"]
[null,1,"Leader","Cravate",10,"Car",10,"- A l'étape 1 et 2 pour atteindre mon objectif, avec un niveau d'énergie de min. 7/10\n- En réunion\n- En rdv avec les clients X et F","Avec les membres du CA, personne 1, 2, 3, et 4.","4h max./jour","Répondre aux mails & aux appels importants","Présenter les résultats de l'entreprise","Définir et valider la vision/stratégie à moyen et à long terme pour l'entreprise. Réflexions et discusssions stratégiques","Gérer des rdv et appeler les clients/partenaires/fournisseurs/ etc.","M'informer des tendances actuelles et futures qui pourraient impacter l'entreprise + Me former : min. 1 formation /an"]
[null,2,"Manager (en interne)","Casquette spécifique",9,"Parce que…",9,"Quand situation 1, situation 2, situation 3.\nAvec un niveau d'énergie min. de 6/10.\nAvec l'humeur min. à 8/10.\nDe HH à HH les jeudis.","Avec les équipes A, B et D.","4h min./jour","Communiquer les actions prioritaires à mes équipes directes.","Encourager et motiver toutes les personnes que je manage.","Informer Mme J, M. O, et l'équipe X, des actions à entreprendre cette semaine","Communiquer les objectifs à atteindre aux directeurs des différents services/ unités/ départements.","Déléguer le travail 1 et 2 à Mme O."]
[null,3,"Partenaire commercial (à l'externe)","Bracelet, amulette",10,"Car il me permet de…",8,"Contexte 1, 2, 3 et 4.\nAvec niveau d'énergie min. de 8/10 et humeur min. à 8/10.","Avec personne 1, 2, 3, 4, 5, 6, 7, 8, 9, et 10.","2h min./semaine","Répondre aux principaux partenaires externes de l'entreprise","Gérer la relation avec les fournisseurs","Gérer la relation avec les clients","Gérer la relation avec la presse","Gérer la relation avec les partenaires financiers"]
[null,4,"Mari / Amant","Anneau, bracelet, amulette, paire de lunettes, style de vêtement",8,"Parce qu'elle me rend heureux et…",8,"Quand c'est le samedi, le dimanche, et le soir entre HH et HH, durant mes vacances 1, et 3. Dans les lieux suivants : lieu 1, lieu 2, lieu 3.","Avec ma femme/mon mari/etc.","5h minimum/jour, et 7h min./jour les jours de congés, les samedis et les dimanches.","Communiquer régulièrement avec elle/lui","Accorder x heures par jour/semaine à elle/lui","Répondre à ses demandes/messages/sollicitations","Emmener ma femme/mon mari au restaurant en tête à tête au moins 1 fois/semaine.","Programmer au moins 1 we entre amoureux/mois."]
[null,5,"Père","Casquette spécifique, tee shirt spécifique",8,"Car je suis responsable de mon/mes enfant(s) et…",7,"Quand c'est le samedi, le dimanche, et le soir entre HH et HH, durant mes vacances 1, et 3. Dans les lieux suivants : lieu 4, lieu 2, lieu 5.","Avec Prénom 1 et Prénom 2.","5h minimum/jour, et 7h min./jour les jours de congés, les samedis et les dimanches.","Apporter de l'amour à mon enfant selon son langage de l'amour (= cadeaux, moments de qualité, services rendus, toucher physique, paroles valorisantes)","M'assurer que mon/mes enfant(s) à des vêtements propres à mettre chaque jour.","Accompagner mon/mes enfant(s) à ses activités extra-scolaires. Assurer les déplacements de mon/mes enfant(s)","Assurer l'éducation de mon enfant et aider mon/mes enfant(s) dans ses apprentissages.","Assurer un environnement sain, propre et sécurisé pour mon/mes enfant(s)"]
[null,6,"Oncle, fils, etc. (vie familiale)","Type de chaussures",5,"Parce que j'ai besoin de… pour…",6,"Lors des anniversaires, des fêtes de Noël, des moments A, B et C.","Avec : personne 1, personne 2, personne 3, personne 4, personne 5, personne 6, personne 7, personne 8, personne 9, personne 10, personne 11, personne 12, personne 13, personne 14, personne 15, personne 16, personne 17, personne 18, personne 19, personne 20, personne 21, personne 22, personne 23","4h min./mois","Appeler les membres X, Y, et R de ma famille 1 fois/mois.","Répondre aux appels de mon père.","Soutenir Mme X dans les x prochains mois.","Organiser un weekend avec X et Y au moins 2 fois/an.","Me rendre disponible pour les anniversaires de P, S, et J chaque année."]
[null,7,"Ami / copain (vie sociale)","Type de pull",6,"Car j'aime… pour…",5,"Quand je vais chez personne 1, personne 2, personne 3. Quand je suis dans les lieux 1, 2, 3, 4, 5, 6, et 7.","Avec les personnes 1, 2 et 3.","2h min./semaine","Passer du temps avec mes ami(e)s","Rencontrer de nouvelles personnes","Appeler/écrire à mes ami(e)s X, Z, et A au moins 1 fois/mois.","Répondre à mes ami(e)s dans les 3 jours.","Programmer au moins 1 sortie avec mes amis W, R, et U /mois."]
[null,8,"Loisirs (activités, clubs, etc.)","Porte clé qui représente votre activité",6,"Parce que cela me fait du bien de… pour…",4,"Quand je pratique les activités : activité A, activité B, activité C.","L'activité A = avec les personnes 1, 2, 3, 4, et 5.\nL'activité B = avec les personnes 6, 7, 8\nL'activité C = avec la personne 9","1h min./semaine","Lire 30 minutes/semaine un livre \"plaisir\".","Participer au carnaval de ma ville avec mon enfant.","Prendre 7 jours de vacances tous les 3 mois.","Pratiquer une activité qui me plaît chaque semaine, pendant x heures minimum.","Visiter des expositions/lieux/musées"]
[null,9,"Dormeur","Pyjama",10,"Car j'ai besoin de faire le plein d'énergie pour…",9,"Chaque nuit entre HH et HH minimum.","Avec Mme/M. O.","7h min./jour","Suivre un rituel du coucher identique tous les soirs.","Ne pas regarder d'écrans au moins 1h avant de me coucher.","Me lever chaque matin à une heure fixe.","Méditer, visualiser, ou prendre un temps calme chaque jour de 10 minutes au réveil / à 13h00 / au coucher.","Manger léger tous les soirs du lundi au vendredi, sans sucre ni café."]
[null,10,"Sportif","Statut, effigie, photo, portrait d'un sportif inspirant",7,"Parce que j'ai besoin d'entretenir mon corps pour…",7,"Chaque mercredi entre HH et HH, chaque samedi entre HH et HH.","Le mercredi avec le groupe A, et le samedi avec M. O.","2h min./semaine","Acheter mes tenues et mon matériel de sport.","Courir 2 fois / semaine pendant 30 minutes minimum.","M'étirer 10 minutes tous les soirs à 21h00.","Boire au moins 1,5 litres d'eau par jour.","Manger des légumes midi et soir, et des protéines matin et midi."]
[null,"","","","","","","","","","","","","",""]
[]
[null,"Pour formules :",null,"Pour dispatch :"]
[null,"Sous-action 1",null,"sous-actions \"A compléter...\""]
[null,"Sous-action 2",null,"avec"]
[null,"Sous-action 3"]
[null,"Sous-action 4"]
[null,"Sous-action 5"]
[null," = Quoi faire ?"]
[]
[null,"Lister max. 5 sous-actions / action. Vérifier que vos actions/ sous-actions comprennent bien celles indiquées dans l'onglet \"Etapes vers objectif\" :"]
[]
[null,{"$f":"B6","v":"Costume n°"},{"$f":"C6","v":"Nom du rôle-costume endossé"},{"$f":"K6","v":"Action 1"},"Action 2","Action 3","Action 4","Action 5"]
[null,{"$f":"B7","v":1},{"$f":"IF(B30=\"\",\"\",C7)","v":"Leader"},"Répondre aux mails & aux appels importants","Présenter les résultats de l'entreprise","Définir et valider la vision/stratégie à moyen et à long terme pour l'entreprise. Réflexions et discusssions stratégiques","Gérer des rdv et appeler les clients/partenaires/fournisseurs/ etc.","M'informer des tendances actuelles et futures qui pourraient impacter l'entreprise + Me former : min. 1 formation /an"]
[null,1,{"$f":"IF(B31=\"\",\"\",UT)","v":"Utilité de cette action sur 10 / objectif ?"},9,8,9,10,6]
[null,1,{"$f":"IF(B32=\"\",\"\",PO)","v":"Pourquoi cette action est-elle utile ou inutile ? Bénéfices réels/ objectif ?"},"Parce que XXX","Car xxx","Car ggg","Parce que FFF","Car JJJ"]
[null,1,{"$f":"IF(B33=\"\",\"\",B20)","v":"Sous-action 1"},"Répondre aux clients externes","S'assurer que les résultats sont corrects",{"$f":"AC&B7&\" \"&F29&\" \"&C33","v":"A compléter costume 1 Action 3 Sous-action 1"},{"$f":"AC&B7&\" \"&G29&\" \"&C33","v":"A compléter costume 1 Action 4 Sous-action 1"},{"$f":"AC&B7&\" \"&H29&\" \"&C33","v":"A compléter costume 1 Action 5 Sous-action 1"}]
[null,1,{"$f":"IF(B34=\"\",\"\",B20&B25)","v":"Sous-action 1 = Quoi faire ?"},"A porter seul","A porter seul","A partager","A partager","A porter seul"]
[null,1,{"$f":"IF(B35=\"\",\"\",B21)","v":"Sous-action 2"},"Répondre aux fournisseurs","Anticiper le travail à produire par les équipes",{"$f":"AC&B7&\" \"&F29&\" \"&C35","v":"A compléter costume 1 Action 3 Sous-action 2"},{"$f":"AC&B7&\" \"&G29&\" \"&C35","v":"A compléter costume 1 Action 4 Sous-action 2"},{"$f":"AC&B7&\" \"&H29&\" \"&C35","v":"A compléter costume 1 Action 5 Sous-action 2"}]
[null,1,{"$f":"IF(B36=\"\",\"\",B21&B25)","v":"Sous-action 2 = Quoi faire ?"},"A donner","A partager","A partager","A porter seul","A partager"]
[null,1,{"$f":"IF(B37=\"\",\"\",B22)","v":"Sous-action 3"},"Répondre aux demandes nouvelles venant de l'externe",{"$f":"AC&B7&\" \"&E29&\" \"&C37","v":"A compléter costume 1 Action 2 Sous-action 3"},{"$f":"AC&B7&\" \"&F29&\" \"&C37","v":"A compléter costume 1 Action 3 Sous-action 3"},{"$f":"AC&B7&\" \"&G29&\" \"&C37","v":"A compléter costume 1 Action 4 Sous-action 3"},{"$f":"AC&B7&\" \"&H29&\" \"&C37","v":"A compléter costume 1 Action 5 Sous-action 3"}]
[null,1,{"$f":"IF(B38=\"\",\"\",B22&B25)","v":"Sous-action 3 = Quoi faire ?"},"A porter seul","A partager","A donner","A donner","A porter seul"]
[null,1,{"$f":"IF(B39=\"\",\"\",B23)","v":"Sous-action 4"},"Répondre aux clients internes",{"$f":"AC&B7&\" \"&E29&\" \"&C39","v":"A compléter costume 1 Action 2 Sous-action 4"},{"$f":"AC&B7&\" \"&F29&\" \"&C39","v":"A compléter costume 1 Action 3 Sous-action 4"},{"$f":"AC&B7&\" \"&G29&\" \"&C39","v":"A compléter costume 1 Action 4 Sous-action 4"},{"$f":"AC&B7&\" \"&H29&\" \"&C39","v":"A compléter costume 1 Action 5 Sous-action 4"}]
[null,1,{"$f":"IF(B40=\"\",\"\",B23&B25)","v":"Sous-action 4 = Quoi faire ?"},"A partager","A porter seul","A porter seul","A partager","A partager"]
[null,1,{"$f":"IF(B41=\"\",\"\",B24)","v":"Sous-action 5"},"Répondre à la Presse",{"$f":"AC&B7&\" \"&E29&\" \"&C41","v":"A compléter costume 1 Action 2 Sous-action 5"},{"$f":"AC&B7&\" \"&F29&\" \"&C41","v":"A compléter costume 1 Action 3 Sous-action 5"},{"$f":"AC&B7&\" \"&G29&\" \"&C41","v":"A compléter costume 1 Action 4 Sous-action 5"},{"$f":"AC&B7&\" \"&H29&\" \"&C41","v":"A compléter costume 1 Action 5 Sous-action 5"}]
[null,1,{"$f":"IF(B42=\"\",\"\",B24&B25)","v":"Sous-action 5 = Quoi faire ?"},"A partager","A partager","A partager","A donner","A porter seul"]
[null,{"$f":"B8","v":2},{"$f":"IF(B43=\"\",\"\",C8)","v":"Manager (en interne)"},{"$f":"K8","v":"Communiquer les actions prioritaires à mes équipes directes."},{"$f":"L8","v":"Encourager et motiver toutes les personnes que je manage."},{"$f":"M8","v":"Informer Mme J, M. O, et l'équipe X, des actions à entreprendre cette semaine"},{"$f":"N8","v":"Communiquer les objectifs à atteindre aux directeurs des différents services/ unités/ départements."},{"$f":"O8","v":"Déléguer le travail 1 et 2 à Mme O."}]
[null,2,{"$f":"IF(B44=\"\",\"\",UT)","v":"Utilité de cette action sur 10 / objectif ?"},6,7,8]
[null,2,{"$f":"IF(B45=\"\",\"\",PO)","v":"Pourquoi cette action est-elle utile ou inutile ? Bénéfices réels/ objectif ?"},"Car jjj","Parce que ooo","A compléter","A compléter","A compléter"]
[null,2,{"$f":"IF(B46=\"\",\"\",B20)","v":"Sous-action 1"},"Planifier une séance mensuelle avec mes équipes pour leur communiquer les actions prioritaires.","Exprimer clairement et honnêtement mes encouragements à chaque personne que je dirige au moins 1 fois/15 jours.",{"$f":"AC&B8&\" \"&F29&\" \"&C46","v":"A compléter costume 2 Action 3 Sous-action 1"},{"$f":"AC&B8&\" \"&G29&\" \"&C46","v":"A compléter costume 2 Action 4 Sous-action 1"},{"$f":"AC&B8&\" \"&H29&\" \"&C46","v":"A compléter costume 2 Action 5 Sous-action 1"}]
[null,2,{"$f":"IF(B47=\"\",\"\",B20&B25)","v":"Sous-action 1 = Quoi faire ?"},"A partager","A porter seul","A porter seul","A donner","A porter seul"]
[null,2,{"$f":"IF(B48=\"\",\"\",B21)","v":"Sous-action 2"},"Réaliser un document clair de présentation des actions prioritaires à effectuer = support à expliquer et transmettre à mes équipes.",{"$f":"AC&B8&\" \"&E29&\" \"&C48","v":"A compléter costume 2 Action 2 Sous-action 2"},{"$f":"AC&B8&\" \"&F29&\" \"&C48","v":"A compléter costume 2 Action 3 Sous-action 2"},{"$f":"AC&B8&\" \"&G29&\" \"&C48","v":"A compléter costume 2 Action 4 Sous-action 2"},{"$f":"AC&B8&\" \"&H29&\" \"&C48","v":"A compléter costume 2 Action 5 Sous-action 2"}]
[null,2,{"$f":"IF(B49=\"\",\"\",B21&B25)","v":"Sous-action 2 = Quoi faire ?"},"A porter seul","A donner","A partager","A porter seul","A porter seul"]
[null,2,{"$f":"IF(B50=\"\",\"\",B22)","v":"Sous-action 3"},{"$f":"AC&B8&\" \"&D29&\" \"&C50","v":"A compléter costume 2 Action 1 Sous-action 3"},"Montrer l'exemple à suivre pour motiver mes équipes.",{"$f":"AC&B8&\" \"&F29&\" \"&C50","v":"A compléter costume 2 Action 3 Sous-action 3"},{"$f":"AC&B8&\" \"&G29&\" \"&C50","v":"A compléter costume 2 Action 4 Sous-action 3"},{"$f":"AC&B8&\" \"&H29&\" \"&C50","v":"A compléter costume 2 Action 5 Sous-action 3"}]
[null,2,{"$f":"IF(B51=\"\",\"\",B22&B25)","v":"Sous-action 3 = Quoi faire ?"},"A partager","A porter seul","A porter seul","A porter seul","A porter seul"]
[null,2,{"$f":"IF(B52=\"\",\"\",B23)","v":"Sous-action 4"},{"$f":"AC&B8&\" \"&D29&\" \"&C52","v":"A compléter costume 2 Action 1 Sous-action 4"},{"$f":"AC&B8&\" \"&E29&\" \"&C52","v":"A compléter costume 2 Action 2 Sous-action 4"},{"$f":"AC&B8&\" \"&F29&\" \"&C52","v":"A compléter costume 2 Action 3 Sous-action 4"},{"$f":"AC&B8&\" \"&G29&\" \"&C52","v":"A compléter costume 2 Action 4 Sous-action 4"},{"$f":"AC&B8&\" \"&H29&\" \"&C52","v":"A compléter costume 2 Action 5 Sous-action 4"}]
[null,2,{"$f":"IF(B53=\"\",\"\",B23&B25)","v":"Sous-action 4 = Quoi faire ?"},"A partager","A partager","A donner","A porter seul","A partager"]
[null,2,{"$f":"IF(B54=\"\",\"\",B24)","v":"Sous-action 5"},{"$f":"AC&B8&\" \"&D29&\" \"&C54","v":"A compléter costume 2 Action 1 Sous-action 5"},{"$f":"AC&B8&\" \"&E29&\" \"&C54","v":"A compléter costume 2 Action 2 Sous-action 5"},{"$f":"AC&B8&\" \"&F29&\" \"&C54","v":"A compléter costume 2 Action 3 Sous-action 5"},{"$f":"AC&B8&\" \"&G29&\" \"&C54","v":"A compléter costume 2 Action 4 Sous-action 5"},{"$f":"AC&B8&\" \"&H29&\" \"&C54","v":"A compléter costume 2 Action 5 Sous-action 5"}]
[null,2,{"$f":"IF(B55=\"\",\"\",B24&B25)","v":"Sous-action 5 = Quoi faire ?"},"A donner","A porter seul","A porter seul","A partager","A porter seul"]
[null,{"$f":"B9","v":3},{"$f":"IF(B56=\"\",\"\",C9)","v":"Partenaire commercial (à l'externe)"},{"$f":"K9","v":"Répondre aux principaux partenaires externes de l'entreprise"},{"$f":"L9","v":"Gérer la relation avec les fournisseurs"},{"$f":"M9","v":"Gérer la relation avec les clients"},{"$f":"N9","v":"Gérer la relation avec la presse"},{"$f":"O9","v":"Gérer la relation avec les partenaires financiers"}]
[null,3,{"$f":"IF(B57=\"\",\"\",UT)","v":"Utilité de cette action sur 10 / objectif ?"}]
[null,3,{"$f":"IF(B58=\"\",\"\",PO)","v":"Pourquoi cette action est-elle utile ou inutile ? Bénéfices réels/ objectif ?"},"A compléter","A compléter","A compléter","A compléter","A compléter"]
[null,3,{"$f":"IF(B59=\"\",\"\",B20)","v":"Sous-action 1"},{"$f":"AC&B9&\" \"&D29&\" \"&C59","v":"A compléter costume 3 Action 1 Sous-action 1"},{"$f":"AC&B9&\" \"&E29&\" \"&C59","v":"A compléter costume 3 Action 2 Sous-action 1"},{"$f":"AC&B9&\" \"&F29&\" \"&C59","v":"A compléter costume 3 Action 3 Sous-action 1"},{"$f":"AC&B9&\" \"&G29&\" \"&C59","v":"A compléter costume 3 Action 4 Sous-action 1"},{"$f":"AC&B9&\" \"&H29&\" \"&C59","v":"A compléter costume 3 Action 5 Sous-action 1"}]
[null,3,{"$f":"IF(B60=\"\",\"\",B20&B25)","v":"Sous-action 1 = Quoi faire ?"},"A donner","A porter seul","A partager","A partager","A donner"]
[null,3,{"$f":"IF(B61=\"\",\"\",B21)","v":"Sous-action 2"},{"$f":"AC&B9&\" \"&D29&\" \"&C61","v":"A compléter costume 3 Action 1 Sous-action 2"},{"$f":"AC&B9&\" \"&E29&\" \"&C61","v":"A compléter costume 3 Action 2 Sous-action 2"},{"$f":"AC&B9&\" \"&F29&\" \"&C61","v":"A compléter costume 3 Action 3 Sous-action 2"},{"$f":"AC&B9&\" \"&G29&\" \"&C61","v":"A compléter costume 3 Action 4 Sous-action 2"},{"$f":"AC&B9&\" \"&H29&\" \"&C61","v":"A compléter costume 3 Action 5 Sous-action 2"}]
[null,3,{"$f":"IF(B62=\"\",\"\",B21&B25)","v":"Sous-action 2 = Quoi faire ?"},"A donner","A porter seul","A porter seul","A porter seul","A partager"]
[null,3,{"$f":"IF(B63=\"\",\"\",B22)","v":"Sous-action 3"},{"$f":"AC&B9&\" \"&D29&\" \"&C63","v":"A compléter costume 3 Action 1 Sous-action 3"},{"$f":"AC&B9&\" \"&E29&\" \"&C63","v":"A compléter costume 3 Action 2 Sous-action 3"},{"$f":"AC&B9&\" \"&F29&\" \"&C63","v":"A compléter costume 3 Action 3 Sous-action 3"},{"$f":"AC&B9&\" \"&G29&\" \"&C63","v":"A compléter costume 3 Action 4 Sous-action 3"},{"$f":"AC&B9&\" \"&H29&\" \"&C63","v":"A compléter costume 3 Action 5 Sous-action 3"}]
[null,3,{"$f":"IF(B64=\"\",\"\",B22&B25)","v":"Sous-action 3 = Quoi faire ?"},"A porter seul","A porter seul","A partager","A partager","A porter seul"]
[null,3,{"$f":"IF(B65=\"\",\"\",B23)","v":"Sous-action 4"},{"$f":"AC&B9&\" \"&D29&\" \"&C65","v":"A compléter costume 3 Action 1 Sous-action 4"},{"$f":"AC&B9&\" \"&E29&\" \"&C65","v":"A compléter costume 3 Action 2 Sous-action 4"},{"$f":"AC&B9&\" \"&F29&\" \"&C65","v":"A compléter costume 3 Action 3 Sous-action 4"},{"$f":"AC&B9&\" \"&G29&\" \"&C65","v":"A compléter costume 3 Action 4 Sous-action 4"},{"$f":"AC&B9&\" \"&H29&\" \"&C65","v":"A compléter costume 3 Action 5 Sous-action 4"}]
[null,3,{"$f":"IF(B66=\"\",\"\",B23&B25)","v":"Sous-action 4 = Quoi faire ?"},"A porter seul","A porter seul","A partager","A partager","A partager"]
[null,3,{"$f":"IF(B67=\"\",\"\",B24)","v":"Sous-action 5"},{"$f":"AC&B9&\" \"&D29&\" \"&C67","v":"A compléter costume 3 Action 1 Sous-action 5"},{"$f":"AC&B9&\" \"&E29&\" \"&C67","v":"A compléter costume 3 Action 2 Sous-action 5"},{"$f":"AC&B9&\" \"&F29&\" \"&C67","v":"A compléter costume 3 Action 3 Sous-action 5"},{"$f":"AC&B9&\" \"&G29&\" \"&C67","v":"A compléter costume 3 Action 4 Sous-action 5"},{"$f":"AC&B9&\" \"&H29&\" \"&C67","v":"A compléter costume 3 Action 5 Sous-action 5"}]
[null,3,{"$f":"IF(B68=\"\",\"\",B24&B25)","v":"Sous-action 5 = Quoi faire ?"},"A donner","A partager","A porter seul","A partager","A porter seul"]
[null,{"$f":"B10","v":4},{"$f":"IF(B69=\"\",\"\",C10)","v":"Mari / Amant"},{"$f":"K10","v":"Communiquer régulièrement avec elle/lui"},{"$f":"L10","v":"Accorder x heures par jour/semaine à elle/lui"},{"$f":"M10","v":"Répondre à ses demandes/messages/sollicitations"},{"$f":"N10","v":"Emmener ma femme/mon mari au restaurant en tête à tête au moins 1 fois/semaine."},{"$f":"O10","v":"Programmer au moins 1 we entre amoureux/mois."}]
[null,4,{"$f":"IF(B70=\"\",\"\",UT)","v":"Utilité de cette action sur 10 / objectif ?"},7,5,8,6,7]
[null,4,{"$f":"IF(B71=\"\",\"\",PO)","v":"Pourquoi cette action est-elle utile ou inutile ? Bénéfices réels/ objectif ?"},"Parce que hhh","Car ooo","Parce que pppp","A compléter","A compléter"]
[null,4,{"$f":"IF(B72=\"\",\"\",B20)","v":"Sous-action 1"},{"$f":"AC&B10&\" \"&D29&\" \"&C72","v":"A compléter costume 4 Action 1 Sous-action 1"},{"$f":"AC&B10&\" \"&E29&\" \"&C72","v":"A compléter costume 4 Action 2 Sous-action 1"},{"$f":"AC&B10&\" \"&F29&\" \"&C72","v":"A compléter costume 4 Action 3 Sous-action 1"},{"$f":"AC&B10&\" \"&G29&\" \"&C72","v":"A compléter costume 4 Action 4 Sous-action 1"},{"$f":"AC&B10&\" \"&H29&\" \"&C72","v":"A compléter costume 4 Action 5 Sous-action 1"}]
[null,4,{"$f":"IF(B73=\"\",\"\",B20&B25)","v":"Sous-action 1 = Quoi faire ?"},"A donner","A partager","A partager","A porter seul","A partager"]
[null,4,{"$f":"IF(B74=\"\",\"\",B21)","v":"Sous-action 2"},{"$f":"AC&B10&\" \"&D29&\" \"&C74","v":"A compléter costume 4 Action 1 Sous-action 2"},{"$f":"AC&B10&\" \"&E29&\" \"&C74","v":"A compléter costume 4 Action 2 Sous-action 2"},{"$f":"AC&B10&\" \"&F29&\" \"&C74","v":"A compléter costume 4 Action 3 Sous-action 2"},{"$f":"AC&B10&\" \"&G29&\" \"&C74","v":"A compléter costume 4 Action 4 Sous-action 2"},{"$f":"AC&B10&\" \"&H29&\" \"&C74","v":"A compléter costume 4 Action 5 Sous-action 2"}]
[null,4,{"$f":"IF(B75=\"\",\"\",B21&B25)","v":"Sous-action 2 = Quoi faire ?"},"A porter seul","A porter seul","A porter seul","A porter seul","A partager"]
[null,4,{"$f":"IF(B76=\"\",\"\",B22)","v":"Sous-action 3"},{"$f":"AC&B10&\" \"&D29&\" \"&C76","v":"A compléter costume 4 Action 1 Sous-action 3"},{"$f":"AC&B10&\" \"&E29&\" \"&C76","v":"A compléter costume 4 Action 2 Sous-action 3"},{"$f":"AC&B10&\" \"&F29&\" \"&C76","v":"A compléter costume 4 Action 3 Sous-action 3"},{"$f":"AC&B10&\" \"&G29&\" \"&C76","v":"A compléter costume 4 Action 4 Sous-action 3"},{"$f":"AC&B10&\" \"&H29&\" \"&C76","v":"A compléter costume 4 Action 5 Sous-action 3"}]
[null,4,{"$f":"IF(B77=\"\",\"\",B22&B25)","v":"Sous-action 3 = Quoi faire ?"},"A porter seul","A porter seul","A partager","A porter seul","A porter seul"]
[null,4,{"$f":"IF(B78=\"\",\"\",B23)","v":"Sous-action 4"},{"$f":"AC&B10&\" \"&D29&\" \"&C78","v":"A compléter costume 4 Action 1 Sous-action 4"},{"$f":"AC&B10&\" \"&E29&\" \"&C78","v":"A compléter costume 4 Action 2 Sous-action 4"},{"$f":"AC&B10&\" \"&F29&\" \"&C78","v":"A compléter costume 4 Action 3 Sous-action 4"},{"$f":"AC&B10&\" \"&G29&\" \"&C78","v":"A compléter costume 4 Action 4 Sous-action 4"},{"$f":"AC&B10&\" \"&H29&\" \"&C78","v":"A compléter costume 4 Action 5 Sous-action 4"}]
[null,4,{"$f":"IF(B79=\"\",\"\",B23&B25)","v":"Sous-action 4 = Quoi faire ?"},"A donner","A partager","A donner","A partager","A donner"]
[null,4,{"$f":"IF(B80=\"\",\"\",B24)","v":"Sous-action 5"},{"$f":"AC&B10&\" \"&D29&\" \"&C80","v":"A compléter costume 4 Action 1 Sous-action 5"},{"$f":"AC&B10&\" \"&E29&\" \"&C80","v":"A compléter costume 4 Action 2 Sous-action 5"},{"$f":"AC&B10&\" \"&F29&\" \"&C80","v":"A compléter costume 4 Action 3 Sous-action 5"},{"$f":"AC&B10&\" \"&G29&\" \"&C80","v":"A compléter costume 4 Action 4 Sous-action 5"},{"$f":"AC&B10&\" \"&H29&\" \"&C80","v":"A compléter costume 4 Action 5 Sous-action 5"}]
[null,4,{"$f":"IF(B81=\"\",\"\",B24&B25)","v":"Sous-action 5 = Quoi faire ?"},"A partager","A donner","A partager","A porter seul","A partager"]
[null,{"$f":"B11","v":5},{"$f":"IF(B82=\"\",\"\",C11)","v":"Père"},{"$f":"K11","v":"Apporter de l'amour à mon enfant selon son langage de l'amour (= cadeaux, moments de qualité, services rendus, toucher physique, paroles valorisantes)"},{"$f":"L11","v":"M'assurer que mon/mes enfant(s) à des vêtements propres à mettre chaque jour."},{"$f":"M11","v":"Accompagner mon/mes enfant(s) à ses activités extra-scolaires. Assurer les déplacements de mon/mes enfant(s)"},{"$f":"N11","v":"Assurer l'éducation de mon enfant et aider mon/mes enfant(s) dans ses apprentissages."},{"$f":"O11","v":"Assurer un environnement sain, propre et sécurisé pour mon/mes enfant(s)"}]
[null,5,{"$f":"IF(B83=\"\",\"\",UT)","v":"Utilité de cette action sur 10 / objectif ?"},4,6,8,7,7]
[null,5,{"$f":"IF(B84=\"\",\"\",PO)","v":"Pourquoi cette action est-elle utile ou inutile ? Bénéfices réels/ objectif ?"},"A compléter","A compléter","A compléter","A compléter","A compléter"]
[null,5,{"$f":"IF(B85=\"\",\"\",B20)","v":"Sous-action 1"},"Dire \"Je t'aime\" à mon enfant au moins 1 fois/jour.",{"$f":"AC&B11&\" \"&E29&\" \"&C85","v":"A compléter costume 5 Action 2 Sous-action 1"},"Aller chercher mon enfant à l'école chaque lundi et mardi soir.",{"$f":"AC&B11&\" \"&G29&\" \"&C85","v":"A compléter costume 5 Action 4 Sous-action 1"},{"$f":"AC&B11&\" \"&H29&\" \"&C85","v":"A compléter costume 5 Action 5 Sous-action 1"}]
[null,5,{"$f":"IF(B86=\"\",\"\",B20&B25)","v":"Sous-action 1 = Quoi faire ?"},"A partager","A partager","A partager","A partager","A partager"]
[null,5,{"$f":"IF(B87=\"\",\"\",B21)","v":"Sous-action 2"},{"$f":"AC&B11&\" \"&D29&\" \"&C87","v":"A compléter costume 5 Action 1 Sous-action 2"},{"$f":"AC&B11&\" \"&E29&\" \"&C87","v":"A compléter costume 5 Action 2 Sous-action 2"},{"$f":"AC&B11&\" \"&F29&\" \"&C87","v":"A compléter costume 5 Action 3 Sous-action 2"},{"$f":"AC&B11&\" \"&G29&\" \"&C87","v":"A compléter costume 5 Action 4 Sous-action 2"},{"$f":"AC&B11&\" \"&H29&\" \"&C87","v":"A compléter costume 5 Action 5 Sous-action 2"}]
[null,5,{"$f":"IF(B88=\"\",\"\",B21&B25)","v":"Sous-action 2 = Quoi faire ?"},"A partager","A partager","A partager","A partager","A partager"]
[null,5,{"$f":"IF(B89=\"\",\"\",B22)","v":"Sous-action 3"},{"$f":"AC&B11&\" \"&D29&\" \"&C89","v":"A compléter costume 5 Action 1 Sous-action 3"},{"$f":"AC&B11&\" \"&E29&\" \"&C89","v":"A compléter costume 5 Action 2 Sous-action 3"},{"$f":"AC&B11&\" \"&F29&\" \"&C89","v":"A compléter costume 5 Action 3 Sous-action 3"},{"$f":"AC&B11&\" \"&G29&\" \"&C89","v":"A compléter costume 5 Action 4 Sous-action 3"},{"$f":"AC&B11&\" \"&H29&\" \"&C89","v":"A compléter costume 5 Action 5 Sous-action 3"}]
[null,5,{"$f":"IF(B90=\"\",\"\",B22&B25)","v":"Sous-action 3 = Quoi faire ?"},"A partager","A partager","A donner","A donner","A partager"]
[null,5,{"$f":"IF(B91=\"\",\"\",B23)","v":"Sous-action 4"},{"$f":"AC&B11&\" \"&D29&\" \"&C91","v":"A compléter costume 5 Action 1 Sous-action 4"},{"$f":"AC&B11&\" \"&E29&\" \"&C91","v":"A compléter costume 5 Action 2 Sous-action 4"},{"$f":"AC&B11&\" \"&F29&\" \"&C91","v":"A compléter costume 5 Action 3 Sous-action 4"},{"$f":"AC&B11&\" \"&G29&\" \"&C91","v":"A compléter costume 5 Action 4 Sous-action 4"},{"$f":"AC&B11&\" \"&H29&\" \"&C91","v":"A compléter costume 5 Action 5 Sous-action 4"}]
[null,5,{"$f":"IF(B92=\"\",\"\",B23&B25)","v":"Sous-action 4 = Quoi faire ?"},"A porter seul","A partager","A partager","A partager","A partager"]
[null,5,{"$f":"IF(B93=\"\",\"\",B24)","v":"Sous-action 5"},{"$f":"AC&B11&\" \"&D29&\" \"&C93","v":"A compléter costume 5 Action 1 Sous-action 5"},{"$f":"AC&B11&\" \"&E29&\" \"&C93","v":"A compléter costume 5 Action 2 Sous-action 5"},{"$f":"AC&B11&\" \"&F29&\" \"&C93","v":"A compléter costume 5 Action 3 Sous-action 5"},{"$f":"AC&B11&\" \"&G29&\" \"&C93","v":"A compléter costume 5 Action 4 Sous-action 5"},{"$f":"AC&B11&\" \"&H29&\" \"&C93","v":"A compléter costume 5 Action 5 Sous-action 5"}]
[null,5,{"$f":"IF(B94=\"\",\"\",B24&B25)","v":"Sous-action 5 = Quoi faire ?"},"A porter seul","A porter seul","A partager","A porter seul","A partager"]
[null,{"$f":"B12","v":6},{"$f":"IF(B95=\"\",\"\",C12)","v":"Oncle, fils, etc. (vie familiale)"},{"$f":"K12","v":"Appeler les membres X, Y, et R de ma famille 1 fois/mois."},{"$f":"L12","v":"Répondre aux appels de mon père."},{"$f":"M12","v":"Soutenir Mme X dans les x prochains mois."},{"$f":"N12","v":"Organiser un weekend avec X et Y au moins 2 fois/an."},{"$f":"O12","v":"Me rendre disponible pour les anniversaires de P, S, et J chaque année."}]
[null,6,{"$f":"IF(B96=\"\",\"\",UT)","v":"Utilité de cette action sur 10 / objectif ?"},10,8,6,10,5]
[null,6,{"$f":"IF(B97=\"\",\"\",PO)","v":"Pourquoi cette action est-elle utile ou inutile ? Bénéfices réels/ objectif ?"},"A compléter","A compléter","A compléter","A compléter","A compléter"]
[null,6,{"$f":"IF(B98=\"\",\"\",B20)","v":"Sous-action 1"},{"$f":"AC&B12&\" \"&D29&\" \"&C98","v":"A compléter costume 6 Action 1 Sous-action 1"},{"$f":"AC&B12&\" \"&E29&\" \"&C98","v":"A compléter costume 6 Action 2 Sous-action 1"},{"$f":"AC&B12&\" \"&F29&\" \"&C98","v":"A compléter costume 6 Action 3 Sous-action 1"},{"$f":"AC&B12&\" \"&G29&\" \"&C98","v":"A compléter costume 6 Action 4 Sous-action 1"},{"$f":"AC&B12&\" \"&H29&\" \"&C98","v":"A compléter costume 6 Action 5 Sous-action 1"}]
[null,6,{"$f":"IF(B99=\"\",\"\",B20&B25)","v":"Sous-action 1 = Quoi faire ?"},"A porter seul","A partager","A donner","A porter seul","A partager"]
[null,6,{"$f":"IF(B100=\"\",\"\",B21)","v":"Sous-action 2"},{"$f":"AC&B12&\" \"&D29&\" \"&C100","v":"A compléter costume 6 Action 1 Sous-action 2"},{"$f":"AC&B12&\" \"&E29&\" \"&C100","v":"A compléter costume 6 Action 2 Sous-action 2"},{"$f":"AC&B12&\" \"&F29&\" \"&C100","v":"A compléter costume 6 Action 3 Sous-action 2"},{"$f":"AC&B12&\" \"&G29&\" \"&C100","v":"A compléter costume 6 Action 4 Sous-action 2"},{"$f":"AC&B12&\" \"&H29&\" \"&C100","v":"A compléter costume 6 Action 5 Sous-action 2"}]
[null,6,{"$f":"IF(B101=\"\",\"\",B21&B25)","v":"Sous-action 2 = Quoi faire ?"},"A partager","A donner","A porter seul","A partager","A donner"]
[null,6,{"$f":"IF(B102=\"\",\"\",B22)","v":"Sous-action 3"},{"$f":"AC&B12&\" \"&D29&\" \"&C102","v":"A compléter costume 6 Action 1 Sous-action 3"},{"$f":"AC&B12&\" \"&E29&\" \"&C102","v":"A compléter costume 6 Action 2 Sous-action 3"},{"$f":"AC&B12&\" \"&F29&\" \"&C102","v":"A compléter costume 6 Action 3 Sous-action 3"},{"$f":"AC&B12&\" \"&G29&\" \"&C102","v":"A compléter costume 6 Action 4 Sous-action 3"},{"$f":"AC&B12&\" \"&H29&\" \"&C102","v":"A compléter costume 6 Action 5 Sous-action 3"}]
[null,6,{"$f":"IF(B103=\"\",\"\",B22&B25)","v":"Sous-action 3 = Quoi faire ?"},"A donner","A porter seul","A partager","A donner","A porter seul"]
[null,6,{"$f":"IF(B104=\"\",\"\",B23)","v":"Sous-action 4"},{"$f":"AC&B12&\" \"&D29&\" \"&C104","v":"A compléter costume 6 Action 1 Sous-action 4"},{"$f":"AC&B12&\" \"&E29&\" \"&C104","v":"A compléter costume 6 Action 2 Sous-action 4"},{"$f":"AC&B12&\" \"&F29&\" \"&C104","v":"A compléter costume 6 Action 3 Sous-action 4"},{"$f":"AC&B12&\" \"&G29&\" \"&C104","v":"A compléter costume 6 Action 4 Sous-action 4"},{"$f":"AC&B12&\" \"&H29&\" \"&C104","v":"A compléter costume 6 Action 5 Sous-action 4"}]
[null,6,{"$f":"IF(B105=\"\",\"\",B23&B25)","v":"Sous-action 4 = Quoi faire ?"},"A porter seul","A partager","A donner","A porter seul","A partager"]
[null,6,{"$f":"IF(B106=\"\",\"\",B24)","v":"Sous-action 5"},{"$f":"AC&B12&\" \"&D29&\" \"&C106","v":"A compléter costume 6 Action 1 Sous-action 5"},{"$f":"AC&B12&\" \"&E29&\" \"&C106","v":"A compléter costume 6 Action 2 Sous-action 5"},{"$f":"AC&B12&\" \"&F29&\" \"&C106","v":"A compléter costume 6 Action 3 Sous-action 5"},{"$f":"AC&B12&\" \"&G29&\" \"&C106","v":"A compléter costume 6 Action 4 Sous-action 5"},{"$f":"AC&B12&\" \"&H29&\" \"&C106","v":"A compléter costume 6 Action 5 Sous-action 5"}]
[null,6,{"$f":"IF(B107=\"\",\"\",B24&B25)","v":"Sous-action 5 = Quoi faire ?"},"A partager","A donner","A porter seul","A partager","A donner"]
[null,{"$f":"B13","v":7},{"$f":"IF(B108=\"\",\"\",C13)","v":"Ami / copain (vie sociale)"},{"$f":"K13","v":"Passer du temps avec mes ami(e)s"},{"$f":"L13","v":"Rencontrer de nouvelles personnes"},{"$f":"M13","v":"Appeler/écrire à mes ami(e)s X, Z, et A au moins 1 fois/mois."},{"$f":"N13","v":"Répondre à mes ami(e)s dans les 3 jours."},{"$f":"O13","v":"Programmer au moins 1 sortie avec mes amis W, R, et U /mois."}]
[null,7,{"$f":"IF(B109=\"\",\"\",UT)","v":"Utilité de cette action sur 10 / objectif ?"}]
[null,7,{"$f":"IF(B110=\"\",\"\",PO)","v":"Pourquoi cette action est-elle utile ou inutile ? Bénéfices réels/ objectif ?"},"Parce que ggg","Car wwww","Parce que iii","A compléter","A compléter"]
[null,7,{"$f":"IF(B111=\"\",\"\",B20)","v":"Sous-action 1"},{"$f":"AC&B13&\" \"&D29&\" \"&C111","v":"A compléter costume 7 Action 1 Sous-action 1"},{"$f":"AC&B13&\" \"&E29&\" \"&C111","v":"A compléter costume 7 Action 2 Sous-action 1"},{"$f":"AC&B13&\" \"&F29&\" \"&C111","v":"A compléter costume 7 Action 3 Sous-action 1"},{"$f":"AC&B13&\" \"&G29&\" \"&C111","v":"A compléter costume 7 Action 4 Sous-action 1"},{"$f":"AC&B13&\" \"&H29&\" \"&C111","v":"A compléter costume 7 Action 5 Sous-action 1"}]
[null,7,{"$f":"IF(B112=\"\",\"\",B20&B25)","v":"Sous-action 1 = Quoi faire ?"},"A partager","A porter seul","A partager","A partager","A partager"]
[null,7,{"$f":"IF(B113=\"\",\"\",B21)","v":"Sous-action 2"},{"$f":"AC&B13&\" \"&D29&\" \"&C113","v":"A compléter costume 7 Action 1 Sous-action 2"},{"$f":"AC&B13&\" \"&E29&\" \"&C113","v":"A compléter costume 7 Action 2 Sous-action 2"},{"$f":"AC&B13&\" \"&F29&\" \"&C113","v":"A compléter costume 7 Action 3 Sous-action 2"},{"$f":"AC&B13&\" \"&G29&\" \"&C113","v":"A compléter costume 7 Action 4 Sous-action 2"},{"$f":"AC&B13&\" \"&H29&\" \"&C113","v":"A compléter costume 7 Action 5 Sous-action 2"}]
[null,7,{"$f":"IF(B114=\"\",\"\",B21&B25)","v":"Sous-action 2 = Quoi faire ?"},"A porter seul","A porter seul","A partager","A partager","A porter seul"]
[null,7,{"$f":"IF(B115=\"\",\"\",B22)","v":"Sous-action 3"},{"$f":"AC&B13&\" \"&D29&\" \"&C115","v":"A compléter costume 7 Action 1 Sous-action 3"},{"$f":"AC&B13&\" \"&E29&\" \"&C115","v":"A compléter costume 7 Action 2 Sous-action 3"},{"$f":"AC&B13&\" \"&F29&\" \"&C115","v":"A compléter costume 7 Action 3 Sous-action 3"},{"$f":"AC&B13&\" \"&G29&\" \"&C115","v":"A compléter costume 7 Action 4 Sous-action 3"},{"$f":"AC&B13&\" \"&H29&\" \"&C115","v":"A compléter costume 7 Action 5 Sous-action 3"}]
[null,7,{"$f":"IF(B116=\"\",\"\",B22&B25)","v":"Sous-action 3 = Quoi faire ?"},"A partager","A partager","A partager","A partager","A donner"]
[null,7,{"$f":"IF(B117=\"\",\"\",B23)","v":"Sous-action 4"},{"$f":"AC&B13&\" \"&D29&\" \"&C117","v":"A compléter costume 7 Action 1 Sous-action 4"},{"$f":"AC&B13&\" \"&E29&\" \"&C117","v":"A compléter costume 7 Action 2 Sous-action 4"},{"$f":"AC&B13&\" \"&F29&\" \"&C117","v":"A compléter costume 7 Action 3 Sous-action 4"},{"$f":"AC&B13&\" \"&G29&\" \"&C117","v":"A compléter costume 7 Action 4 Sous-action 4"},{"$f":"AC&B13&\" \"&H29&\" \"&C117","v":"A compléter costume 7 Action 5 Sous-action 4"}]
[null,7,{"$f":"IF(B118=\"\",\"\",B23&B25)","v":"Sous-action 4 = Quoi faire ?"},"A partager","A partager","A partager","A partager","A partager"]
[null,7,{"$f":"IF(B119=\"\",\"\",B24)","v":"Sous-action 5"},{"$f":"AC&B13&\" \"&D29&\" \"&C119","v":"A compléter costume 7 Action 1 Sous-action 5"},{"$f":"AC&B13&\" \"&E29&\" \"&C119","v":"A compléter costume 7 Action 2 Sous-action 5"},{"$f":"AC&B13&\" \"&F29&\" \"&C119","v":"A compléter costume 7 Action 3 Sous-action 5"},{"$f":"AC&B13&\" \"&G29&\" \"&C119","v":"A compléter costume 7 Action 4 Sous-action 5"},{"$f":"AC&B13&\" \"&H29&\" \"&C119","v":"A compléter costume 7 Action 5 Sous-action 5"}]
[null,7,{"$f":"IF(B120=\"\",\"\",B24&B25)","v":"Sous-action 5 = Quoi faire ?"},"A donner","A partager","A porter seul","A donner","A porter seul"]
[null,{"$f":"B14","v":8},{"$f":"IF(B121=\"\",\"\",C14)","v":"Loisirs (activités, clubs, etc.)"},{"$f":"K14","v":"Lire 30 minutes/semaine un livre \"plaisir\"."},{"$f":"L14","v":"Participer au carnaval de ma ville avec mon enfant."},{"$f":"M14","v":"Prendre 7 jours de vacances tous les 3 mois."},{"$f":"N14","v":"Pratiquer une activité qui me plaît chaque semaine, pendant x heures minimum."},{"$f":"O14","v":"Visiter des expositions/lieux/musées"}]
[null,8,{"$f":"IF(B122=\"\",\"\",UT)","v":"Utilité de cette action sur 10 / objectif ?"}]
[null,8,{"$f":"IF(B123=\"\",\"\",PO)","v":"Pourquoi cette action est-elle utile ou inutile ? Bénéfices réels/ objectif ?"},"A compléter","A compléter","A compléter","A compléter","A compléter"]
[null,8,{"$f":"IF(B124=\"\",\"\",B20)","v":"Sous-action 1"},{"$f":"AC&B14&\" \"&D29&\" \"&C124","v":"A compléter costume 8 Action 1 Sous-action 1"},{"$f":"AC&B14&\" \"&E29&\" \"&C124","v":"A compléter costume 8 Action 2 Sous-action 1"},{"$f":"AC&B14&\" \"&F29&\" \"&C124","v":"A compléter costume 8 Action 3 Sous-action 1"},{"$f":"AC&B14&\" \"&G29&\" \"&C124","v":"A compléter costume 8 Action 4 Sous-action 1"},{"$f":"AC&B14&\" \"&H29&\" \"&C124","v":"A compléter costume 8 Action 5 Sous-action 1"}]
[null,8,{"$f":"IF(B125=\"\",\"\",B20&B25)","v":"Sous-action 1 = Quoi faire ?"},"A porter seul","A partager","A partager","A donner","A porter seul"]
[null,8,{"$f":"IF(B126=\"\",\"\",B21)","v":"Sous-action 2"},{"$f":"AC&B14&\" \"&D29&\" \"&C126","v":"A compléter costume 8 Action 1 Sous-action 2"},{"$f":"AC&B14&\" \"&E29&\" \"&C126","v":"A compléter costume 8 Action 2 Sous-action 2"},{"$f":"AC&B14&\" \"&F29&\" \"&C126","v":"A compléter costume 8 Action 3 Sous-action 2"},{"$f":"AC&B14&\" \"&G29&\" \"&C126","v":"A compléter costume 8 Action 4 Sous-action 2"},{"$f":"AC&B14&\" \"&H29&\" \"&C126","v":"A compléter costume 8 Action 5 Sous-action 2"}]
[null,8,{"$f":"IF(B127=\"\",\"\",B21&B25)","v":"Sous-action 2 = Quoi faire ?"},"A porter seul","A porter seul","A porter seul","A partager","A porter seul"]
[null,8,{"$f":"IF(B128=\"\",\"\",B22)","v":"Sous-action 3"},{"$f":"AC&B14&\" \"&D29&\" \"&C128","v":"A compléter costume 8 Action 1 Sous-action 3"},{"$f":"AC&B14&\" \"&E29&\" \"&C128","v":"A compléter costume 8 Action 2 Sous-action 3"},{"$f":"AC&B14&\" \"&F29&\" \"&C128","v":"A compléter costume 8 Action 3 Sous-action 3"},{"$f":"AC&B14&\" \"&G29&\" \"&C128","v":"A compléter costume 8 Action 4 Sous-action 3"},{"$f":"AC&B14&\" \"&H29&\" \"&C128","v":"A compléter costume 8 Action 5 Sous-action 3"}]
[null,8,{"$f":"IF(B129=\"\",\"\",B22&B25)","v":"Sous-action 3 = Quoi faire ?"},"A donner","A partager","A donner","A partager","A porter seul"]
[null,8,{"$f":"IF(B130=\"\",\"\",B23)","v":"Sous-action 4"},{"$f":"AC&B14&\" \"&D29&\" \"&C130","v":"A compléter costume 8 Action 1 Sous-action 4"},{"$f":"AC&B14&\" \"&E29&\" \"&C130","v":"A compléter costume 8 Action 2 Sous-action 4"},{"$f":"AC&B14&\" \"&F29&\" \"&C130","v":"A compléter costume 8 Action 3 Sous-action 4"},{"$f":"AC&B14&\" \"&G29&\" \"&C130","v":"A compléter costume 8 Action 4 Sous-action 4"},{"$f":"AC&B14&\" \"&H29&\" \"&C130","v":"A compléter costume 8 Action 5 Sous-action 4"}]
[null,8,{"$f":"IF(B131=\"\",\"\",B23&B25)","v":"Sous-action 4 = Quoi faire ?"},"A porter seul","A porter seul","A partager","A porter seul","A porter seul"]
[null,8,{"$f":"IF(B132=\"\",\"\",B24)","v":"Sous-action 5"},{"$f":"AC&B14&\" \"&D29&\" \"&C132","v":"A compléter costume 8 Action 1 Sous-action 5"},{"$f":"AC&B14&\" \"&E29&\" \"&C132","v":"A compléter costume 8 Action 2 Sous-action 5"},{"$f":"AC&B14&\" \"&F29&\" \"&C132","v":"A compléter costume 8 Action 3 Sous-action 5"},{"$f":"AC&B14&\" \"&G29&\" \"&C132","v":"A compléter costume 8 Action 4 Sous-action 5"},{"$f":"AC&B14&\" \"&H29&\" \"&C132","v":"A compléter costume 8 Action 5 Sous-action 5"}]
[null,8,{"$f":"IF(B133=\"\",\"\",B24&B25)","v":"Sous-action 5 = Quoi faire ?"},"A partager","A donner","A partager","A partager","A partager"]
[null,{"$f":"B15","v":9},{"$f":"IF(B134=\"\",\"\",C15)","v":"Dormeur"},{"$f":"K15","v":"Suivre un rituel du coucher identique tous les soirs."},{"$f":"L15","v":"Ne pas regarder d'écrans au moins 1h avant de me coucher."},{"$f":"M15","v":"Me lever chaque matin à une heure fixe."},{"$f":"N15","v":"Méditer, visualiser, ou prendre un temps calme chaque jour de 10 minutes au réveil / à 13h00 / au coucher."},{"$f":"O15","v":"Manger léger tous les soirs du lundi au vendredi, sans sucre ni café."}]
[null,9,{"$f":"IF(B135=\"\",\"\",UT)","v":"Utilité de cette action sur 10 / objectif ?"}]
[null,9,{"$f":"IF(B136=\"\",\"\",PO)","v":"Pourquoi cette action est-elle utile ou inutile ? Bénéfices réels/ objectif ?"},"A compléter","A compléter","A compléter","A compléter","A compléter"]
[null,9,{"$f":"IF(B137=\"\",\"\",B20)","v":"Sous-action 1"},"Me coucher chaque soir à heure fixe.",{"$f":"AC&B15&\" \"&E29&\" \"&C137","v":"A compléter costume 9 Action 2 Sous-action 1"},{"$f":"AC&B15&\" \"&F29&\" \"&C137","v":"A compléter costume 9 Action 3 Sous-action 1"},{"$f":"AC&B15&\" \"&G29&\" \"&C137","v":"A compléter costume 9 Action 4 Sous-action 1"},{"$f":"AC&B15&\" \"&H29&\" \"&C137","v":"A compléter costume 9 Action 5 Sous-action 1"}]
[null,9,{"$f":"IF(B138=\"\",\"\",B20&B25)","v":"Sous-action 1 = Quoi faire ?"},"A porter seul","A partager","A partager","A partager","A porter seul"]
[null,9,{"$f":"IF(B139=\"\",\"\",B21)","v":"Sous-action 2"},{"$f":"AC&B15&\" \"&D29&\" \"&C139","v":"A compléter costume 9 Action 1 Sous-action 2"},{"$f":"AC&B15&\" \"&E29&\" \"&C139","v":"A compléter costume 9 Action 2 Sous-action 2"},{"$f":"AC&B15&\" \"&F29&\" \"&C139","v":"A compléter costume 9 Action 3 Sous-action 2"},{"$f":"AC&B15&\" \"&G29&\" \"&C139","v":"A compléter costume 9 Action 4 Sous-action 2"},{"$f":"AC&B15&\" \"&H29&\" \"&C139","v":"A compléter costume 9 Action 5 Sous-action 2"}]
[null,9,{"$f":"IF(B140=\"\",\"\",B21&B25)","v":"Sous-action 2 = Quoi faire ?"},"A donner","A porter seul","A porter seul","A porter seul","A porter seul"]
[null,9,{"$f":"IF(B141=\"\",\"\",B22)","v":"Sous-action 3"},{"$f":"AC&B15&\" \"&D29&\" \"&C141","v":"A compléter costume 9 Action 1 Sous-action 3"},{"$f":"AC&B15&\" \"&E29&\" \"&C141","v":"A compléter costume 9 Action 2 Sous-action 3"},{"$f":"AC&B15&\" \"&F29&\" \"&C141","v":"A compléter costume 9 Action 3 Sous-action 3"},{"$f":"AC&B15&\" \"&G29&\" \"&C141","v":"A compléter costume 9 Action 4 Sous-action 3"},{"$f":"AC&B15&\" \"&H29&\" \"&C141","v":"A compléter costume 9 Action 5 Sous-action 3"}]
[null,9,{"$f":"IF(B142=\"\",\"\",B22&B25)","v":"Sous-action 3 = Quoi faire ?"},"A donner","A porter seul","A porter seul","A porter seul","A porter seul"]
[null,9,{"$f":"IF(B143=\"\",\"\",B23)","v":"Sous-action 4"},{"$f":"AC&B15&\" \"&D29&\" \"&C143","v":"A compléter costume 9 Action 1 Sous-action 4"},{"$f":"AC&B15&\" \"&E29&\" \"&C143","v":"A compléter costume 9 Action 2 Sous-action 4"},{"$f":"AC&B15&\" \"&F29&\" \"&C143","v":"A compléter costume 9 Action 3 Sous-action 4"},{"$f":"AC&B15&\" \"&G29&\" \"&C143","v":"A compléter costume 9 Action 4 Sous-action 4"},{"$f":"AC&B15&\" \"&H29&\" \"&C143","v":"A compléter costume 9 Action 5 Sous-action 4"}]
[null,9,{"$f":"IF(B144=\"\",\"\",B23&B25)","v":"Sous-action 4 = Quoi faire ?"},"A porter seul","A porter seul","A porter seul","A porter seul","A partager"]
[null,9,{"$f":"IF(B145=\"\",\"\",B24)","v":"Sous-action 5"},{"$f":"AC&B15&\" \"&D29&\" \"&C145","v":"A compléter costume 9 Action 1 Sous-action 5"},{"$f":"AC&B15&\" \"&E29&\" \"&C145","v":"A compléter costume 9 Action 2 Sous-action 5"},{"$f":"AC&B15&\" \"&F29&\" \"&C145","v":"A compléter costume 9 Action 3 Sous-action 5"},{"$f":"AC&B15&\" \"&G29&\" \"&C145","v":"A compléter costume 9 Action 4 Sous-action 5"},{"$f":"AC&B15&\" \"&H29&\" \"&C145","v":"A compléter costume 9 Action 5 Sous-action 5"}]
[null,9,{"$f":"IF(B146=\"\",\"\",B24&B25)","v":"Sous-action 5 = Quoi faire ?"},"A partager","A partager","A porter seul","A partager","A partager"]
[null,{"$f":"B16","v":10},{"$f":"IF(B147=\"\",\"\",C16)","v":"Sportif"},{"$f":"K16","v":"Acheter mes tenues et mon matériel de sport."},{"$f":"L16","v":"Courir 2 fois / semaine pendant 30 minutes minimum."},{"$f":"M16","v":"M'étirer 10 minutes tous les soirs à 21h00."},{"$f":"N16","v":"Boire au moins 1,5 litres d'eau par jour."},{"$f":"O16","v":"Manger des légumes midi et soir, et des protéines matin et midi."}]
[null,10,{"$f":"IF(B148=\"\",\"\",UT)","v":"Utilité de cette action sur 10 / objectif ?"}]
[null,10,{"$f":"IF(B149=\"\",\"\",PO)","v":"Pourquoi cette action est-elle utile ou inutile ? Bénéfices réels/ objectif ?"},"A compléter","A compléter","A compléter","A compléter","A compléter"]
[null,10,{"$f":"IF(B150=\"\",\"\",B20)","v":"Sous-action 1"},{"$f":"AC&B16&\" \"&D29&\" \"&C150","v":"A compléter costume 10 Action 1 Sous-action 1"},{"$f":"AC&B16&\" \"&E29&\" \"&C150","v":"A compléter costume 10 Action 2 Sous-action 1"},{"$f":"AC&B16&\" \"&F29&\" \"&C150","v":"A compléter costume 10 Action 3 Sous-action 1"},{"$f":"AC&B16&\" \"&G29&\" \"&C150","v":"A compléter costume 10 Action 4 Sous-action 1"},{"$f":"AC&B16&\" \"&H29&\" \"&C150","v":"A compléter costume 10 Action 5 Sous-action 1"}]
[null,10,{"$f":"IF(B150=\"\",\"\",B20&B25)","v":"Sous-action 1 = Quoi faire ?"},"A partager","A partager","A partager","A partager","A donner"]
[null,10,{"$f":"IF(B152=\"\",\"\",B21)","v":"Sous-action 2"},{"$f":"AC&B16&\" \"&D29&\" \"&C152","v":"A compléter costume 10 Action 1 Sous-action 2"},{"$f":"AC&B16&\" \"&E29&\" \"&C152","v":"A compléter costume 10 Action 2 Sous-action 2"},{"$f":"AC&B16&\" \"&F29&\" \"&C152","v":"A compléter costume 10 Action 3 Sous-action 2"},{"$f":"AC&B16&\" \"&G29&\" \"&C152","v":"A compléter costume 10 Action 4 Sous-action 2"},{"$f":"AC&B16&\" \"&H29&\" \"&C152","v":"A compléter costume 10 Action 5 Sous-action 2"}]
[null,10,{"$f":"IF(B153=\"\",\"\",B21&B25)","v":"Sous-action 2 = Quoi faire ?"},"A donner","A partager","A donner","A partager","A donner"]
[null,10,{"$f":"IF(B154=\"\",\"\",B22)","v":"Sous-action 3"},{"$f":"AC&B16&\" \"&D29&\" \"&C154","v":"A compléter costume 10 Action 1 Sous-action 3"},{"$f":"AC&B16&\" \"&E29&\" \"&C154","v":"A compléter costume 10 Action 2 Sous-action 3"},{"$f":"AC&B16&\" \"&F29&\" \"&C154","v":"A compléter costume 10 Action 3 Sous-action 3"},{"$f":"AC&B16&\" \"&G29&\" \"&C154","v":"A compléter costume 10 Action 4 Sous-action 3"},{"$f":"AC&B16&\" \"&H29&\" \"&C154","v":"A compléter costume 10 Action 5 Sous-action 3"}]
[null,10,{"$f":"IF(B155=\"\",\"\",B22&B25)","v":"Sous-action 3 = Quoi faire ?"},"A partager","A partager","A partager","A donner","A porter seul"]
[null,10,{"$f":"IF(B156=\"\",\"\",B23)","v":"Sous-action 4"},{"$f":"AC&B16&\" \"&D29&\" \"&C156","v":"A compléter costume 10 Action 1 Sous-action 4"},{"$f":"AC&B16&\" \"&E29&\" \"&C156","v":"A compléter costume 10 Action 2 Sous-action 4"},{"$f":"AC&B16&\" \"&F29&\" \"&C156","v":"A compléter costume 10 Action 3 Sous-action 4"},{"$f":"AC&B16&\" \"&G29&\" \"&C156","v":"A compléter costume 10 Action 4 Sous-action 4"},{"$f":"AC&B16&\" \"&H29&\" \"&C156","v":"A compléter costume 10 Action 5 Sous-action 4"}]
[null,10,{"$f":"IF(B157=\"\",\"\",B23&B25)","v":"Sous-action 4 = Quoi faire ?"},"A donner","A donner","A partager","A partager","A porter seul"]
[null,10,{"$f":"IF(B158=\"\",\"\",B24)","v":"Sous-action 5"},{"$f":"AC&B16&\" \"&D29&\" \"&C158","v":"A compléter costume 10 Action 1 Sous-action 5"},{"$f":"AC&B16&\" \"&E29&\" \"&C158","v":"A compléter costume 10 Action 2 Sous-action 5"},{"$f":"AC&B16&\" \"&F29&\" \"&C158","v":"A compléter costume 10 Action 3 Sous-action 5"},{"$f":"AC&B16&\" \"&G29&\" \"&C158","v":"A compléter costume 10 Action 4 Sous-action 5"},{"$f":"AC&B16&\" \"&H29&\" \"&C158","v":"A compléter costume 10 Action 5 Sous-action 5"}]
[null,10,{"$f":"IF(B159=\"\",\"\",B24&B25)","v":"Sous-action 5 = Quoi faire ?"},"A partager","A donner","A partager","A partager","A porter seul"]

{"sheet":"A porter seul","index":8,"n_rows":5,"n_cols":5,"rows_kept":5,"cut":false,"hidden":false,"merged":[[2,1,2,2],[2,3,2,4]]}
[null,"Tableau 1 = synthèse de sous-actions à porter seul :"]
[]
[null,"Rappel de votre objectif :",null,{"$f":"OB","v":"Je veux…"}]
[]
[null,"Costume n°","Nom du rôle-costume","Actions","Sous-actions à porter seul"]

{"sheet":"A partager","index":9,"n_rows":5,"n_cols":5,"rows_kept":5,"cut":false,"hidden":false,"merged":[[2,1,2,2],[2,3,2,4]]}
[null,"Tableau 2 = synthèse de sous-actions à partager :"]
[]
[null,"Rappel de votre objectif :",null,{"$f":"OB","v":"Je veux…"}]
[]
[null,"Costume n°","Nom du rôle-costume","Actions","Sous-actions à partager"]

{"sheet":"A donner","index":10,"n_rows":5,"n_cols":5,"rows_kept":5,"cut":false,"hidden":false,"merged":[[2,1,2,2],[2,3,2,4]]}
[null,"Tableau 3 = synthèse de sous-actions à donner :"]
[]
[null,"Rappel de votre objectif :",null,{"$f":"OB","v":"Je veux…"}]
[{"$f":"IF(B4<>\"\",\"A donner\",\"\")","v":""}]
[null,"Costume n°","Nom du rôle-costume","Actions","Sous-actions à donner à d'autres personnes"]